Workbook

Sheet Presentación
A1: DISPOSITIVO DIDÁCTICO PARA EL EQUILIBRADO DEL MECANISMO CUADRILÁTERO ARTICULADO

Sheet Insertar parámetros
A1: INSERTAR PARÁMETROS DEL MECANISMO CUADRILÁTERO ARTICULADO | AI1: 418
B2: INSERTAR PARÁMETROS DEL MECANISMO CUADRILÁTERO ARTICULADO
B10: LONGITUDES | C10: [mm]
B11: R1 | C11: 180
B12: R2 | C12: 60
B13: R3 | C13: 160
B14: R4 | C14: 100
B15: a2 | C15: 20.57288287
B16: a3 | C16: 80
B17: a4 | C17: 6.683055008
B18: a2* | C18: 56.65633763
B19: a4* | C19: 61.60088266
B20: ÁNGULOS CENTROIDES | C20: [º]
B21: Φ2 | C21: 180
B22: Φ3 | C22: 0
B23: Φ4 | C23: 180
B24: MASAS DE LAS BARRAS | C24: [kg]
B25: m2 | C25: 0.081712212
B26: m3 | C26: 0.182159901
B27: m4 | C27: 0.124048354
B28: MOMENTOS INERCIALES | C28: [kg·mm2]
B29: IG2y | C29: 121.3404099
B30: IG3y | C30: 737.2761826
B31: IG4y | C31: 163.0414916
B32: IG2y* | C32: 49.04199115
B33: IG4y* | C33: 120.7270852
B34: PARÁMETROS DE ENTRADA
B35: θ2 [º] | C35: 0
B36: ω2 [rad/s] | C36: 15.386
B37: ε2 [rad/s2] | C37: 0

Sheet Posición
A1: ESTUDIO DE POSICIÓN
B6: R1 | C6: R2 | D6: R3 | E6: R4 | F6: K1 | G6: K2 | H6: K3 | I6: L | J6: C | K6: L+C | L6: P+Q | M6: GRASHOF: Biela-Manivela | N6: R2X | O6: R2Y | P6: R3X | Q6: R3Y | R6: R4X | S6: R4Y
B7: ='Hoja de cálculo general'!A2 -> 180 | C7: ='Hoja de cálculo general'!B2 -> 60 | D7: ='Hoja de cálculo general'!C2 -> 160 | E7: ='Hoja de cálculo general'!D2 -> 100 | F7: ='Hoja de cálculo general'!E2 -> -1.8 | G7: ='Hoja de cálculo general'!F2 -> 3 | H7: ='Hoja de cálculo general'!G2 -> 1.7 | I7: ='Hoja de cálculo general'!H2 -> 180 | J7: ='Hoja de cálculo general'!I2 -> 60 | K7: ='Hoja de cálculo general'!J2 -> 240 | L7: ='Hoja de cálculo general'!K2 -> 260 | M7: ='Hoja de cálculo general'!L2 -> Sí | N7: ='Hoja de cálculo general'!M2 -> 59.99086171 | O7: ='Hoja de cálculo general'!N2 -> 1.047144386 | P7: ='Hoja de cálculo general'!O2 -> 125.8661071 | Q7: ='Hoja de cálculo general'!P2 -> 98.78118784 | R7: ='Hoja de cálculo general'!Q2 -> 5.856968856 | S7: ='Hoja de cálculo general'!R2 -> 99.82833223
B8: θ2 [º] | C8: θ2 (rad) | D8: A | E8: B | F8: C | G8: θ4 (º) | H8: θ4 (rad) | I8: θ3 (º) | J8: θ3 (rad) | K8: Ax | L8: Ay | M8: Bx | N8: By | O8: Cx | P8: Cy | Q8: Dx | R8: Dy
B9: ='Insertar parámetros'!C35 -> 0 | C9: ='Hoja de cálculo general'!B4 -> 0.01745329252 | D9: ='Hoja de cálculo general'!C4 -> 2.099878156 | E9: ='Hoja de cálculo general'!D4 -> 0.03490481287 | F9: ='Hoja de cálculo general'!E4 -> -1.900426454 | G9: ='Hoja de cálculo general'!F4 -> 86.64228245 | H9: ='Hoja de cálculo general'!G4 -> 1.5121931 | I9: ='Hoja de cálculo general'!H4 -> 38.12523616 | J9: ='Hoja de cálculo general'!I4 -> 0.6654108991 | K9: ='Hoja de cálculo general'!J4 -> 0 | L9: ='Hoja de cálculo general'!K4 -> 0 | M9: ='Hoja de cálculo general'!L4 -> 59.99086171 | N9: ='Hoja de cálculo general'!M4 -> 1.047144386 | O9: ='Hoja de cálculo general'!N4 -> 185.8569689 | P9: ='Hoja de cálculo general'!O4 -> 99.82833223 | Q9: ='Hoja de cálculo general'!P4 -> 180 | R9: ='Hoja de cálculo general'!Q4 -> 0
B11: a2 | C11: a2x | D11: a2y | E11: a3 | F11: a3x | H11: a3y | J11: a4 | K11: a4x | M11: a4y
B12: ='Hoja de cálculo general'!T3 -> 20.57288287 | C12: ='Hoja de cálculo general'!U3 -> -20.56974952 | D12: ='Hoja de cálculo general'!V3 -> -0.3590463135 | E12: ='Hoja de cálculo general'!W3 -> 80 | F12: ='Hoja de cálculo general'!X3 -> 62.93305357 | G12: ='Hoja de cálculo general'!Y3 -> 122.9239153 | H12: ='Hoja de cálculo general'!Z3 -> 49.39059392 | I12: ='Hoja de cálculo general'!AA3 -> 50.43773831 | J12: ='Hoja de cálculo general'!AB3 -> 6.683055008 | K12: ='Hoja de cálculo general'!AC3 -> -0.3914244504 | L12: ='Hoja de cálculo general'!AD3 -> 179.6085755 | M12: ='Hoja de cálculo general'!AE3 -> -6.671582357 | N12: ='Hoja de cálculo general'!AF3 -> -6.671582357
B13: Φ2 (º) | C13: Φ2 (rad) | E13: Φ3 (º) | F13: Φ3 (rad) | J13: Φ4 (º) | K13: Φ4 (rad)
B14: ='Hoja de cálculo general'!T5 -> 180 | C14: ='Hoja de cálculo general'!U5 -> 3.141592654 | E14: ='Hoja de cálculo general'!W5 -> 0 | F14: ='Hoja de cálculo general'!X5 -> 0 | J14: ='Hoja de cálculo general'!AB5 -> 180 | K14: ='Hoja de cálculo general'!AC5 -> 3.141592654
B16: CENTRO TOTAL DE MASA SIN EQUILIBRAR
B17: mT | C17: STx | D17: STy | E17: ST | F17: Ω (º) | G17: Ω (rad)
B18: ='Hoja de cálculo general'!T82 -> 0.387920467 | C18: ='Hoja de cálculo general'!U82 -> 110.8246672 | D18: ='Hoja de cálculo general'!V82 -> 21.47552616 | E18: ='Hoja de cálculo general'!W82 -> 112.8862485 | F18: ='Hoja de cálculo general'!X82 -> 10.96681457 | G18: ='Hoja de cálculo general'!Y82 -> 0.1914070226
B19: SC2x | C19: SC2y | D19: SC3x | E19: SC3y | F19: SC4x | G19: SC4y
B20: ='Hoja de cálculo general'!T84 -> -20.56974952 | C20: ='Hoja de cálculo general'!U84 -> -0.3590463135 | D20: ='Hoja de cálculo general'!V84 -> 122.9239153 | E20: ='Hoja de cálculo general'!W84 -> 50.43773831 | F20: ='Hoja de cálculo general'!X84 -> 179.6085755 | G20: ='Hoja de cálculo general'!Y84 -> -6.671582357
B36: θ2 [º]
B37: =B9 -> 0

Sheet Velocidad y aceleraciones
A1: ESTUDIO DE VELOCIDADES Y ACELERACIONES
B6: ω2 [rad/s] | C6: ω3 | D6: ω4 | E6: VB | F6: VBX | G6: VBY | H6: VG2 | I6: VG2x | K6: VG2y | N6: ε2 [rad/s2] | O6: ε3 | P6: ε4 | Q6: JNB | R6: JNBX | S6: JNBY | V6: JNG2 | W6: JNG2X | Y6: JNG2Y
B7: ='Hoja de cálculo general'!T8 -> 15.386 | C7: ='Hoja de cálculo general'!U8 -> -7.679434703 | D7: ='Hoja de cálculo general'!V8 -> -7.437490959 | E7: ='Hoja de cálculo general'!W8 -> 923.16 | F7: ='Hoja de cálculo general'!X8 -> -16.11136353 | G7: ='Hoja de cálculo general'!Y8 -> 923.0193983 | H7: ='Hoja de cálculo general'!AB8 -> 316.5343759 | I7: ='Hoja de cálculo general'!AC8 -> 5.524286579 | K7: ='Hoja de cálculo general'!AE8 -> -316.4861662 | N7: ='Hoja de cálculo general'!T15 -> 0 | O7: ='Hoja de cálculo general'!U15 -> 14.99913093 | P7: ='Hoja de cálculo general'!V15 -> 228.2119161 | Q7: ='Hoja de cálculo general'!W15 -> 14203.73976 | R7: ='Hoja de cálculo general'!X15 -> -14201.57646 | S7: ='Hoja de cálculo general'!Y15 -> -247.8894392 | V7: ='Hoja de cálculo general'!AB15 -> 4870.197907 | W7: ='Hoja de cálculo general'!AC15 -> 4869.456153 | Y7: ='Hoja de cálculo general'!AD15 -> 84.99667331
B8: OX | C8: OY | E8: VC/B | F8: VC/BX | G8: VC/BY | H8: VG3 | I8: VG3x | K8: VG3y | N8: OX' | O8: OY' | Q8: JTB | R8: JTBX | T8: JTBY | V8: JTG2 | W8: JTG2X | Y8: JTG2Y
B9: ='Hoja de cálculo general'!T10 -> 0 | C9: ='Hoja de cálculo general'!U10 -> 0 | E9: ='Hoja de cálculo general'!W10 -> 1228.709553 | F9: ='Hoja de cálculo general'!X10 -> 758.5836819 | G9: ='Hoja de cálculo general'!Y10 -> -966.5805512 | H9: ='Hoja de cálculo general'!AB10 -> 570.3172455 | I9: ='Hoja de cálculo general'!AC10 -> 379.291841 | J9: ='Hoja de cálculo general'!AD10 -> 363.1804774 | K9: ='Hoja de cálculo general'!AE10 -> -483.2902756 | L9: ='Hoja de cálculo general'!AF10 -> 439.7291227 | N9: ='Hoja de cálculo general'!T17 -> 0 | O9: ='Hoja de cálculo general'!U17 -> 0 | Q9: ='Hoja de cálculo general'!W17 -> 0 | R9: ='Hoja de cálculo general'!X17 -> 0 | S9: ='Hoja de cálculo general'!Y17 -> -14201.57646 | T9: ='Hoja de cálculo general'!Z17 -> 0 | U9: ='Hoja de cálculo general'!AA17 -> -247.8894392 | V9: ='Hoja de cálculo general'!AB17 -> 0 | W9: ='Hoja de cálculo general'!AC17 -> 0 | X9: ='Hoja de cálculo general'!AD17 -> 4869.456153 | Y9: ='Hoja de cálculo general'!AE17 -> 0 | Z9: ='Hoja de cálculo general'!AF17 -> 84.99667331
E10: VC | F10: VCX | G10: VCY | H10: VG4 | I10: VG4x | J10: VG4y | Q10: JNC/B | R10: JNC/BX | T10: JNC/BY | V10: JNG3 | W10: JNG3X | Y10: JNG3Y
E11: ='Hoja de cálculo general'!W12 -> 743.7490959 | F11: ='Hoja de cálculo general'!X12 -> 742.4723184 | G11: ='Hoja de cálculo general'!Y12 -> -43.56115291 | H11: ='Hoja de cálculo general'!AB12 -> 49.7051612 | I11: ='Hoja de cálculo general'!AC12 -> -49.61983346 | J11: ='Hoja de cálculo general'!AD12 -> 2.911215811 | Q11: ='Hoja de cálculo general'!W19 -> 9435.794778 | R11: ='Hoja de cálculo general'!X19 -> -7422.792228 | S11: ='Hoja de cálculo general'!Y19 -> -21624.36869 | T11: ='Hoja de cálculo general'!Z19 -> -5825.493852 | U11: ='Hoja de cálculo general'!AA19 -> -6073.383292 | V11: ='Hoja de cálculo general'!AB19 -> 4717.897389 | W11: ='Hoja de cálculo general'!AC19 -> -3711.396114 | X11: ='Hoja de cálculo general'!AD19 -> -17912.97258 | Y11: ='Hoja de cálculo general'!AE19 -> -2912.746926 | Z11: ='Hoja de cálculo general'!AF19 -> -3160.636365
Q12: JTC/B | R12: JTC/BX | T12: JTC/BY | V12: JTG3 | W12: JTG3X | Y12: JTG3Y
Q13: ='Hoja de cálculo general'!W21 -> 2399.860949 | R13: ='Hoja de cálculo general'!X21 -> -1481.63197 | S13: ='Hoja de cálculo general'!Y21 -> -23106.00066 | T13: ='Hoja de cálculo general'!Z21 -> 1887.882221 | U13: ='Hoja de cálculo general'!AA21 -> -4185.501071 | V13: ='Hoja de cálculo general'!AB21 -> 1199.930475 | W13: ='Hoja de cálculo general'!AC21 -> -740.8159851 | X13: ='Hoja de cálculo general'!AD21 -> -18653.78856 | Y13: ='Hoja de cálculo general'!AE21 -> 943.9411105 | Z13: ='Hoja de cálculo general'!AF21 -> -2216.695255
Q14: JNC | R14: JNCX | S14: JNCY | V14: JNG4 | W14: JNG4X | X14: JNG4Y
B15: θ2 [º] | C15: ='Insertar parámetros'!C35 -> 0 | Q15: ='Hoja de cálculo general'!W23 -> 5531.627177 | R15: ='Hoja de cálculo general'!X23 -> -323.985681 | S15: ='Hoja de cálculo general'!Y23 -> -5522.131156 | V15: ='Hoja de cálculo general'!AB23 -> 369.6816871 | W15: ='Hoja de cálculo general'!AC23 -> 21.65214128 | X15: ='Hoja de cálculo general'!AD23 -> 369.0470627
Q16: JTC | R16: JTCX | T16: JTCY | V16: JTG4 | W16: JTG4X | Y16: JTG4Y
Q17: ='Hoja de cálculo general'!W25 -> 22821.19161 | R17: ='Hoja de cálculo general'!X25 -> -22782.01498 | S17: ='Hoja de cálculo general'!Y25 -> -23106.00066 | T17: ='Hoja de cálculo general'!Z25 -> 1336.630085 | U17: ='Hoja de cálculo general'!AA25 -> -4185.501071 | V17: ='Hoja de cálculo general'!AB25 -> 1525.152789 | W17: ='Hoja de cálculo general'!AC25 -> 1522.534593 | X17: ='Hoja de cálculo general'!AD25 -> 1544.186734 | Y17: ='Hoja de cálculo general'!AE25 -> -89.32772384 | Z17: ='Hoja de cálculo general'!AF25 -> 279.7193389

Sheet Equilibrado
A1: ESTUDIO DE EQUILIBRADO
B6: Eslabón i | C6: Tabla Parámetros | T6: CENTRO TOTAL DE MASA EQUILIBRADO
C7: 1 | D7: 2 | F7: 3 | H7: 4 | T7: mT | U7: STx | V7: STy | W7: ST | X7: Ω (º) | Y7: Ω (rad)
B8: ri | C8: ='Hoja de cálculo general'!U43 -> 180 | D8: ='Hoja de cálculo general'!V43 -> 60 | F8: ='Hoja de cálculo general'!X43 -> 160 | H8: ='Hoja de cálculo general'!Z43 -> 100 | T8: ='Hoja de cálculo general'!T87 -> 0.5891015327 | U8: ='Hoja de cálculo general'!U87 -> 106.7974689 | V8: ='Hoja de cálculo general'!V87 -> -3.015366182e-15 | W8: ='Hoja de cálculo general'!W87 -> 106.7974689 | X8: ='Hoja de cálculo general'!X87 -> -1.617713956e-15 | Y8: ='Hoja de cálculo general'!Y87 -> -2.823443489e-17
B9: ai0 | C9: ='Hoja de cálculo general'!U44 -> - | D9: ='Hoja de cálculo general'!V44 -> 20.57288287 | F9: ='Hoja de cálculo general'!X44 -> 80 | H9: ='Hoja de cálculo general'!Z44 -> 6.683055008 | T9: SC2x | U9: SC2y | V9: SC3x | W9: SC3y | X9: SC4x | Y9: SC4y
B10: Φi | C10: ='Hoja de cálculo general'!U45 -> - | D10: ='Hoja de cálculo general'!V45 -> 180 | E10: ='Hoja de cálculo general'!W45 -> 3.141592654 | F10: ='Hoja de cálculo general'!X45 -> 0 | G10: ='Hoja de cálculo general'!Y45 -> 0 | H10: ='Hoja de cálculo general'!Z45 -> 180 | I10: ='Hoja de cálculo general'!AA45 -> 3.141592654 | T10: ='Hoja de cálculo general'!T89 -> -20.56974952 | U10: ='Hoja de cálculo general'!U89 -> -0.3590463135 | V10: ='Hoja de cálculo general'!V89 -> 122.9239153 | W10: ='Hoja de cálculo general'!W89 -> 50.43773831 | X10: ='Hoja de cálculo general'!X89 -> 179.6085755 | Y10: ='Hoja de cálculo general'!Y89 -> -6.671582357
B11: ai'0 | C11: ='Hoja de cálculo general'!U46 -> - | D11: ='Hoja de cálculo general'!V46 -> - | F11: ='Hoja de cálculo general'!X46 -> 80 | H11: ='Hoja de cálculo general'!Z46 -> - | T11: SC2*x | U11: SC2*y | V11: SC4*x | W11: SC4*y
B12: Φi' | C12: ='Hoja de cálculo general'!U47 -> - | D12: ='Hoja de cálculo general'!V47 -> - | F12: ='Hoja de cálculo general'!X47 -> 180 | G12: ='Hoja de cálculo general'!Y47 -> 3.141592654 | H12: ='Hoja de cálculo general'!Z47 -> - | T12: ='Hoja de cálculo general'!T91 -> -56.64770859 | U12: ='Hoja de cálculo general'!U91 -> -0.9887894315 | V12: ='Hoja de cálculo general'!V91 -> 176.3920555 | W12: ='Hoja de cálculo general'!W91 -> -61.4951338
B13: mi0 | C13: ='Hoja de cálculo general'!U48 -> - | D13: ='Hoja de cálculo general'!V48 -> 0.081712212 | F13: ='Hoja de cálculo general'!X48 -> 0.182159901 | H13: ='Hoja de cálculo general'!Z48 -> 0.124048354
B14: RESOLUCIÓN DEL EQUILIBRADO | E14: BERKOF-LOWEN
B15: m2a2 | C15: ='Hoja de cálculo general'!U50 -> 5.46479703
B16: Φ2 = Φ3'0 | C16: ='Hoja de cálculo general'!U51 -> 180 | D16: ='Hoja de cálculo general'!V51 -> 3.141592654
B17: m4a4 | C17: ='Hoja de cálculo general'!U52 -> 9.10799505
B18: Φ4 = Φ30 + 180 | C18: ='Hoja de cálculo general'!U53 -> 180 | D18: ='Hoja de cálculo general'!V53 -> 3.141592654
B19: m20a20 | C19: ='Hoja de cálculo general'!U54 -> 1.681055767
B20: m40a40 | C20: ='Hoja de cálculo general'!U55 -> 0.8290219734
B21: m2*a2* | C21: ='Hoja de cálculo general'!U56 -> 3.783741263
B22: Φ2* | C22: ='Hoja de cálculo general'!U57 -> 180 | D22: ='Hoja de cálculo general'!V57 -> 3.141592654
B23: m4*a4* | C23: ='Hoja de cálculo general'!U58 -> 8.278973077
B24: Φ4* | C24: ='Hoja de cálculo general'!U59 -> 180 | D24: ='Hoja de cálculo general'!V59 -> 3.141592654
B26: Contrapeso A
B27: m2*[kg] | C27: G2* [kg·mm/s2] | D27: IG2y* | E27: a2* | F27: a2x* | G27: a2y*
B28: ='Hoja de cálculo general'!T63 -> 0.06678407786 | C28: ='Hoja de cálculo general'!U63 -> 654.9280371 | D28: ='Hoja de cálculo general'!V63 -> 49.04199115 | E28: ='Hoja de cálculo general'!W63 -> 56.65633763 | F28: ='Hoja de cálculo general'!X63 -> -56.64770859 | G28: ='Hoja de cálculo general'!Y63 -> -0.9887894315
B29: ='Hoja de cálculo general'!T70 -> Contrapeso B
B30: m4*[kg] | C30: G4* [kg·mm/s2] | D30: IG4y* | E30: a4* | F30: a4x* | H30: a4y*
B31: ='Hoja de cálculo general'!T72 -> 0.1343969878 | C31: ='Hoja de cálculo general'!U72 -> 1317.98414 | D31: ='Hoja de cálculo general'!V72 -> 120.7270852 | E31: ='Hoja de cálculo general'!W72 -> 61.60088266 | F31: ='Hoja de cálculo general'!X72 -> -3.607944512 | G31: ='Hoja de cálculo general'!Y72 -> 176.3920555 | H31: ='Hoja de cálculo general'!Z72 -> -61.4951338
B35: ESTUDIO DE VELOCIDADES Y ACELERACIONES DE LOS CONTRAPESOS
B36: VG2* | C36: VG2X* | E36: VG2Y*
B37: ='Hoja de cálculo general'!T65 -> 871.7144107 | C37: ='Hoja de cálculo general'!U65 -> 15.21351419 | E37: ='Hoja de cálculo general'!W65 -> -871.5816444
B38: JNG2* | C38: JNG2X* | E38: JNG2Y* | G38: JTG2* | H38: JTG2X* | J38: JTG2Y* | O38: θ2 [º] | P38: ='Insertar parámetros'!C35 -> 0
B39: ='Hoja de cálculo general'!T67 -> 13412.19792 | C39: ='Hoja de cálculo general'!U67 -> 13410.15518 | E39: ='Hoja de cálculo general'!W67 -> 234.0751294 | G39: ='Hoja de cálculo general'!Y67 -> 0 | H39: ='Hoja de cálculo general'!Z67 -> 0 | I39: ='Hoja de cálculo general'!AA67 -> 13410.15518 | J39: ='Hoja de cálculo general'!AB67 -> 0 | K39: ='Hoja de cálculo general'!AC67 -> 234.0751294
B40: VG4* | C40: VG4X* | E40: VG4Y*
B41: ='Hoja de cálculo general'!T74 -> 458.1560078 | C41: ='Hoja de cálculo general'!U74 -> -457.3695016 | E41: ='Hoja de cálculo general'!W74 -> 26.83405469
B42: JNG4* | C42: JNG4X* | E42: JNG4Y* | G42: JTG4* | H42: JTG4X* | J42: JTG4Y*
B43: ='Hoja de cálculo general'!T76 -> 3407.531166 | C43: ='Hoja de cálculo general'!U76 -> 199.5780391 | E43: ='Hoja de cálculo general'!W76 -> 3401.681533 | G43: ='Hoja de cálculo general'!Y76 -> 14058.05546 | H43: ='Hoja de cálculo general'!Z76 -> 14033.92231 | I43: ='Hoja de cálculo general'!AA76 -> 14233.50035 | J43: ='Hoja de cálculo general'!AB76 -> -823.3759303 | K43: ='Hoja de cálculo general'!AC76 -> 2578.305603

Sheet Esfuerzos
A1: ESTUDIO DE ESFUERZOS
B6: FI2 | C6: FI2x | E6: FI2y | G6: MI2
B7: ='Hoja de cálculo general'!V29 -> 397.9546439 | C7: ='Hoja de cálculo general'!W29 -> -397.8940335 | D7: ='Hoja de cálculo general'!X29 -> -418.463783 | E7: ='Hoja de cálculo general'!Y29 -> -6.945266189 | F7: ='Hoja de cálculo general'!Z29 -> -7.304312502 | G7: ='Hoja de cálculo general'!V31 -> 0
B8: FI3 | C8: FI3x | E8: FI3y | G8: MI3
B9: ='Hoja de cálculo general'!V33 -> 886.7724514 | C9: ='Hoja de cálculo general'!W33 -> 811.0145152 | D9: ='Hoja de cálculo general'!X33 -> 933.9384305 | E9: ='Hoja de cálculo general'!Y33 -> 358.6374725 | F9: ='Hoja de cálculo general'!Z33 -> 409.0752108 | G9: ='Hoja de cálculo general'!V35 -> -11058.502
B10: FI4 | C10: FI4x | E10: FI4y | G10: MI4
B11: ='Hoja de cálculo general'!V37 -> 194.6711802 | C11: ='Hoja de cálculo general'!W37 -> -191.5538227 | D11: ='Hoja de cálculo general'!X37 -> -11.9452471 | E11: ='Hoja de cálculo general'!Y37 -> -34.69872357 | F11: ='Hoja de cálculo general'!Z37 -> -41.37030593 | G11: ='Hoja de cálculo general'!V39 -> -37208.0112
B12: FI2* | C12: FI2X* | E12: FI2Y* | G12: MI2*
B13: ='Hoja de cálculo general'!T69 -> 895.7212704 | C13: ='Hoja de cálculo general'!U69 -> -895.5848477 | D13: ='Hoja de cálculo general'!V69 -> -952.2325563 | E13: ='Hoja de cálculo general'!W69 -> -15.63249167 | F13: ='Hoja de cálculo general'!X69 -> -16.6212811 | G13: ='Hoja de cálculo general'!Y69 -> 0
B14: FI4* | C14: FI4X* | E14: FI4Y* | G14: MI4*
B15: ='Hoja de cálculo general'!T78 -> 1944.070858 | C15: ='Hoja de cálculo general'!U78 -> -1912.939574 | D15: ='Hoja de cálculo general'!V78 -> -1736.547518 | E15: ='Hoja de cálculo general'!W78 -> -346.5165067 | F15: ='Hoja de cálculo general'!X78 -> -408.0116405 | G15: ='Hoja de cálculo general'!Y78 -> -27551.35944
B17: REACCIONES EN BASTIDOR, ARTICULACIONES Y MOMENTO MOTOR SIN EQUILIBRAR
B18: ΣRA | C18: RAx | D18: RAy | E18: ΣFXbastidor | F18: ΣFbastidor
B19: ='Hoja de cálculo general'!T95 -> 1548.857596 | C19: ='Hoja de cálculo general'!U95 -> -88.76106144 | D19: ='Hoja de cálculo general'!V95 -> 1546.31217 | E19: ='Hoja de cálculo general'!W95 -> -221.5666591 | F19: ='Hoja de cálculo general'!X95 -> 3494.238284
B20: ΣRD | C20: RDx | D20: RDy | E20: ΣFYbastidor
B21: ='Hoja de cálculo general'!T97 -> 1945.432665 | C21: ='Hoja de cálculo general'!U97 -> -132.8055977 | D21: ='Hoja de cálculo general'!V97 -> 1940.894362 | E21: ='Hoja de cálculo general'!W97 -> 3487.206532
B22: ΣRB | C22: RBx | D22: RBy | E22: MOMENTO MOTOR
B23: ='Hoja de cálculo general'!T99 -> 884.0486205 | C23: ='Hoja de cálculo general'!U99 -> 486.6550949 | D23: ='Hoja de cálculo general'!V99 -> -738.043889 | E23: ='Hoja de cálculo general'!W99 -> 28302.47333
B24: ΣRC | C24: RCx | D24: RCy
B25: ='Hoja de cálculo general'!T101 -> 762.1619764 | C25: ='Hoja de cálculo general'!U101 -> 324.3594203 | D25: ='Hoja de cálculo general'!V101 -> -689.6969224
B26: REACCIONES EN BASTIDOR, ARTICULACIONES Y MOMENTO MOTOR EQUILIBRADO
B27: ΣRA | C27: RAx | D27: RAy | E27: ΣFXbastidor | F27: ΣFbastidor
B28: ='Hoja de cálculo general'!T104 -> 1525.863186 | C28: ='Hoja de cálculo general'!U104 -> -76.07210385 | D28: ='Hoja de cálculo general'!V104 -> 1523.965714 | E28: ='Hoja de cálculo general'!W104 -> 2586.957762 | F28: ='Hoja de cálculo general'!X104 -> 6371.118562
B29: ΣRD | C29: RDx | D29: RDy | E29: ΣFYbastidor
B30: ='Hoja de cálculo general'!T106 -> 5056.394773 | C30: ='Hoja de cálculo general'!U106 -> 2663.029866 | D30: ='Hoja de cálculo general'!V106 -> 4298.301994 | E30: ='Hoja de cálculo general'!W106 -> 5822.267708
B31: ΣRB | C31: RBx | D31: RBy | E31: MOMENTO MOTOR
B32: ='Hoja de cálculo general'!T108 -> 1370.294582 | C32: ='Hoja de cálculo general'!U108 -> 1369.550985 | D32: ='Hoja de cálculo general'!V108 -> -45.13690437 | E32: ='Hoja de cálculo general'!W108 -> -49441.26688
B33: ΣRC | C33: RCx | D33: RCy
B34: ='Hoja de cálculo general'!T110 -> 1491.159466 | C34: ='Hoja de cálculo general'!U110 -> -558.5364698 | D34: ='Hoja de cálculo general'!V110 -> -1382.603907
B50: θ2 [º] | C50: ='Insertar parámetros'!C35 -> 0

Sheet Control mecanismo
A20: PWM | B20: 0
A22: BAJAR VELOCIDAD | X22: SUBIR VELOCIDAD

Sheet Hoja de cálculo general (hidden)
A1: R1 | B1: R2 | C1: R3 | D1: R4 | E1: K1 | F1: K2 | G1: K3 | H1: L | I1: C | J1: L+C | K1: P+Q | L1: GRASHOF: Biela-Manivela | M1: R2X | N1: R2Y | O1: R3X | P1: R3Y | Q1: R4X | R1: R4Y | T1: POSICIÓN CENTRO DE MASA G2 | W1: POSICIÓN CENTRO DE MASA G3 | AB1: POSICIÓN CENTRO DE MASA G4
A2: ='Insertar parámetros'!C11 -> 180 | B2: ='Insertar parámetros'!C12 -> 60 | C2: ='Insertar parámetros'!C13 -> 160 | D2: ='Insertar parámetros'!C14 -> 100 | E2: =-(A2/D2) -> -1.8 | F2: =A2/B2 -> 3 | G2: =((A2^2)+(B2^2)+(D2^2)-(C2^2))/(2*B2*D2) -> 1.7 | H2: =A2 -> 180 | I2: =B2 -> 60 | J2: =H2+I2 -> 240 | K2: =C2+D2 -> 260 | L2: =IF(J2<K2,"Sí","No") -> Sí | M2: =(L4-J4) -> 59.99086171 | N2: =(M4-K4) -> 1.047144386 | O2: =(N4-L4) -> 125.8661071 | P2: =(O4-M4) -> 98.78118784 | Q2: =(N4-P4) -> 5.856968856 | R2: =(O4-Q4) -> 99.82833223 | T2: a2 | U2: a2x | V2: a2y | W2: a3 | X2: a3x | Z2: a3y | AB2: a4 | AC2: a4x | AE2: a4y
A3: θ2 (º) | B3: θ2 (rad) | C3: A | D3: B | E3: C | F3: θ4 (º) | G3: θ4 (rad) | H3: θ3 (º) | I3: θ3 (rad) | J3: Ax | K3: Ay | L3: Bx | M3: By | N3: Cx | O3: Cy | P3: Dx | Q3: Dy | T3: ='Insertar parámetros'!C15 -> 20.57288287 | U3: =T3*COS(B4+U5) -> -20.56974952 | V3: =T3*SIN(B4+U5) -> -0.3590463135 | W3: ='Insertar parámetros'!C16 -> 80 | X3: =W3*COS(I4+X5) -> 62.93305357 | Y3: =M2+X3 -> 122.9239153 | Z3: =W3*SIN(I4+X5) -> 49.39059392 | AA3: =N2+Z3 -> 50.43773831 | AB3: ='Insertar parámetros'!C17 -> 6.683055008 | AC3: =AB3*COS(G4+AC5) -> -0.3914244504 | AD3: =A2+AC3 -> 179.6085755 | AE3: =AB3*SIN(G4+AC5) -> -6.671582357 | AF3: =Q4+AE3 -> -6.671582357
A4: ='Insertar parámetros'!C35+1 -> 1 | B4: =A4*PI()/180 -> 0.01745329252 | C4: =$F$2-COS(B4)*($E$2+1)-$G$2 -> 2.099878156 | D4: =2*SIN(B4) -> 0.03490481287 | E4: =COS(B4)-$F$2-$E$2*COS(B4)-$G$2 -> -1.900426454 | F4: =G4*180/PI() -> 86.64228245 | G4: =2*ATAN((-D4+((D4^2)-4*C4*E4)^0.5)/(2*C4)) -> 1.5121931 | H4: =I4*180/PI() -> 38.12523616 | I4: =ATAN2(N4-L4,O4-M4) -> 0.6654108991 | J4: 0 | K4: 0 | L4: =$B$2*COS(B4) -> 59.99086171 | M4: =$B$2*SIN(B4) -> 1.047144386 | N4: =$P$4+$D$2*COS(G4) -> 185.8569689 | O4: =$D$2*SIN(G4) -> 99.82833223 | P4: =$A$2 -> 180 | Q4: 0 | T4: Φ2 (º) | U4: Φ2 (rad) | W4: Φ3 (º) | X4: Φ3 (rad) | AB4: Φ4 (º) | AC4: Φ4 (rad)
A5: 1 | B5: =A5*PI()/180 -> 0.01745329252 | C5: =$F$2-COS(B5)*($E$2+1)-$G$2 -> 2.099878156 | D5: =2*SIN(B5) -> 0.03490481287 | E5: =COS(B5)-$F$2-$E$2*COS(B5)-$G$2 -> -1.900426454 | F5: =G5*180/PI() -> 86.64228245 | G5: =2*ATAN((-D5+(D5^2-4*C5*E5)^0.5)/(2*C5)) -> 1.5121931 | H5: 38.12523616 | I5: =ATAN2(N5-L5,O5-M5) -> 0.6654108991 | J5: 0 | K5: 0 | L5: 59.99086171 | M5: 1.047144386 | N5: 185.8569689 | O5: 99.82833223 | P5: 180 | Q5: 0 | T5: ='Insertar parámetros'!C21 -> 180 | U5: =T5*PI()/180 -> 3.141592654 | W5: ='Insertar parámetros'!C22 -> 0 | X5: =W5*PI()/180 -> 0 | AB5: ='Insertar parámetros'!C23 -> 180 | AC5: =AB5*PI()/180 -> 3.141592654
A6: 2 | B6: 0.03490658504 | C6: 2.099512662 | D6: 0.06979899341 | E6: -1.901705684 | F6: =G6*180/PI() -> 86.16737174 | G6: 1.503904345 | H6: 37.62674415 | I6: =ATAN2(N6-L6,O6-M6) -> 0.6567105722 | J6: 0 | K6: 0 | L6: 59.96344962 | M6: 2.093969802 | N6: 186.6842108 | O6: 99.77635655 | P6: 180 | Q6: 0
A7: 3 | B7: 0.05235987756 | C7: 2.098903628 | D7: 0.1046719125 | E7: -1.903837303 | F7: 85.70969632 | G7: 1.495916402 | H7: 37.12979356 | I7: =ATAN2(N7-L7,O7-M7) -> 0.6480371483 | J7: 0 | K7: 0 | L7: 59.91777209 | M7: 3.140157375 | N7: 187.4809969 | O7: 99.71978081 | P7: 180 | Q7: 0 | T7: ω2 | U7: ω3 | V7: ω4 | W7: VB | X7: VBX | Y7: VBY | AB7: VG2 | AC7: VG2x | AE7: VG2y
A8: 4 | B8: 0.06981317008 | C8: 2.09805124 | D8: 0.1395129475 | E8: -1.906820659 | F8: 85.26963763 | G8: 1.488235929 | H8: 36.63480625 | I8: =ATAN2(N8-L8,O8-M8) -> 0.6393979899 | J8: 0 | K8: 0 | L8: 59.85384302 | M8: 4.185388425 | N8: 188.2466638 | O8: 99.65938258 | P8: 180 | Q8: 0 | T8: ='Insertar parámetros'!C36 -> 15.386 | U8: =T8*((N2*Q2-M2*R2)/(O2*R2-P2*Q2)) -> -7.679434703 | V8: =T8*((M2*P2-N2*O2)/(Q2*P2-R2*O2)) -> -7.437490959 | W8: =(X8^2+Y8^2)^0.5 -> 923.16 | X8: =-T8*N2 -> -16.11136353 | Y8: =T8*M2 -> 923.0193983 | AB8: =(AC8^2+AE8^2)^0.5 -> 316.5343759 | AC8: =-T8*V3 -> 5.524286579 | AE8: =T8*U3 -> -316.4861662
A9: 5 | B9: 0.0872664626 | C9: 2.096955758 | D9: 0.1743114855 | E9: -1.910654845 | F9: 84.84754524 | G9: 1.480869027 | H9: 36.14218804 | I9: 0.6308001801 | J9: 0 | K9: 0 | L9: 59.77168189 | M9: 5.229344565 | N9: 188.9806143 | O9: 99.59592645 | P9: 180 | Q9: 0 | T9: OX | U9: OY | W9: VC/B | X9: VC/BX | Y9: VC/BY | AB9: VG3 | AC9: VG3x | AE9: VG3y
A10: 6 | B10: 0.1047197551 | C10: 2.095617516 | D10: 0.2090569265 | E10: -1.915338693 | F10: 84.44373611 | G10: 1.473821228 | H10: 35.65232777 | I10: 0.6222505055 | J10: 0 | K10: 0 | L10: 59.67131372 | M10: 6.271707796 | N10: 189.6823175 | O10: 99.53015989 | P10: 180 | Q10: 0 | T10: 0 | U10: 0 | W10: =(X10^2+Y10^2)^0.5 -> 1228.709553 | X10: =-U8*P2 -> 758.5836819 | Y10: =U8*O2 -> -966.5805512 | AB10: =(AD10^2+AF10^2)^0.5 -> 570.3172455 | AC10: =-U8*Z3 -> 379.291841 | AD10: =X8+AC10 -> 363.1804774 | AE10: =U8*X3 -> -483.2902756 | AF10: =Y8+AE10 -> 439.7291227
A11: 7 | B11: 0.1221730476 | C11: 2.094036921 | D11: 0.2437386868 | E11: -1.920870775 | F11: 84.05849408 | G11: 1.467097486 | H11: 35.16559646 | I11: 0.6137554417 | J11: 0 | K11: 0 | L11: 59.5527691 | M11: 7.312160604 | N11: 190.3513087 | O11: 99.46280917 | P11: 180 | Q11: 0 | W11: VC | X11: VCX | Y11: VCY | AB11: VG4 | AC11: VG4x | AD11: VG4y
A12: 8 | B12: 0.1396263402 | C12: 2.092214455 | D12: 0.2783462019 | E12: -1.927249408 | F12: 83.6920696 | G12: 1.460702172 | H12: 34.68234659 | I12: 0.6053211404 | J12: 0 | K12: 0 | L12: 59.41608412 | M12: 8.350386058 | N12: 190.9871886 | O12: 99.39457574 | P12: 180 | Q12: 0 | W12: =(X12^2+Y12^2)^0.5 -> 743.7490959 | X12: =-V8*R2 -> 742.4723184 | Y12: =V8*Q2 -> -43.56115291 | AB12: =(AC12^2+AD12^2)^0.5 -> 49.7051612 | AC12: =-V8*AE3 -> -49.61983346 | AD12: =V8*AC3 -> 2.911215811
A13: 9 | B13: 0.1570796327 | C13: 2.090150672 | D13: 0.3128689301 | E13: -1.934472646 | F13: 83.34467959 | G13: 1.454639073 | H13: 34.20291152 | I13: 0.5969534197 | J13: 0 | K13: 0 | L13: 59.26130044 | M13: 9.386067902 | N13: 191.5896221 | O13: 99.32613281 | P13: 180 | Q13: 0
A14: 10 | B14: 0.1745329252 | C14: 2.087846202 | D14: 0.3472963553 | E14: -1.942538292 | F14: 83.0165075 | G14: 1.448911389 | H14: 33.72760502 | I14: 0.5886577564 | J14: 0 | K14: 0 | L14: 59.08846518 | M14: 10.41889066 | N14: 192.1583376 | O14: 99.25812223 | P14: 180 | Q14: 0 | T14: ε2 | U14: ε3 | V14: ε4 | W14: JNB | X14: JNBX | Y14: JNBY | AB14: JNG2 | AC14: JNG2X | AD14: JNG2Y
A15: 11 | B15: 0.1919862177 | C15: 2.085301747 | D15: 0.3816179908 | E15: -1.951443886 | F15: 82.70770366 | G15: 1.443521746 | H15: 33.25672103 | I15: 0.5804392803 | J15: 0 | K15: 0 | L15: 58.89763101 | M15: 11.44853972 | N15: 192.6931243 | O15: 99.1911518 | P15: 180 | Q15: 0 | T15: 0 | U15: =((T15*(M2*R2-N2*Q2)-(T8^2)*(N2*R2+M2*Q2)-(U8^2)*(P2*R2+O2*Q2)+(V8^2)*(R2^2+Q2^2))/(P2*Q2-O2*R2)) -> 14.99913093 | V15: =(1/R2)*(T15*N2+T8^2*M2+U15*P2+U8^2*O2-(V8^2)*Q2) -> 228.2119161 | W15: =(X15^2+Y15^2)^0.5 -> 14203.73976 | X15: =-(T8^2*M2) -> -14201.57646 | Y15: =-(T8^2*N2) -> -247.8894392 | AB15: =(AC15^2+AD15^2)^0.5 -> 4870.197907 | AC15: =-(T8^2*U3) -> 4869.456153 | AD15: =-(T8^2*V3) -> 84.99667331
A16: 12 | B16: 0.2094395102 | C16: 2.082518081 | D16: 0.4158233816 | E16: -1.961186718 | F16: 82.41838564 | G16: 1.438472194 | H16: 32.79053339 | I16: 0.5723027712 | J16: 0 | K16: 0 | L16: 58.68885604 | M16: 12.47470145 | N16: 193.1938312 | O16: 99.1257929 | P16: 180 | Q16: 0 | T16: OX' | U16: OY' | W16: JTB | X16: JTBX | Z16: JTBY | AB16: JTG2 | AC16: JTG2X | AE16: JTG2Y
A17: 13 | B17: 0.2268928028 | C17: 2.079496052 | D17: 0.4499021087 | E17: -1.971763819 | F17: 82.1486389 | G17: 1.433764225 | H17: 32.32929586 | I17: 0.5642526577 | J17: 0 | K17: 0 | L17: 58.46220389 | M17: 13.49706326 | N17: 193.6603644 | O17: 99.06257842 | P17: 180 | Q17: 0 | T17: 0 | U17: 0 | W17: =(X17^2+Z17^2)^0.5 -> 0 | X17: =-(T15*N2) -> 0 | Y17: =X15+X17 -> -14201.57646 | Z17: =T15*M2 -> 0 | AA17: =Y15+Z17 -> -247.8894392 | AB17: =(AC17^2+AE17^2)^0.5 -> 0 | AC17: =-(T15*V3) -> 0 | AD17: =AC15+AC17 -> 4869.456153 | AE17: =T15*U3 -> 0 | AF17: =AD15+AE17 -> 84.99667331
A18: 14 | B18: 0.2443460953 | C18: 2.076236581 | D18: 0.4838437912 | E18: -1.983171966 | F18: 81.89851753 | G18: 1.429398783 | H18: 31.87324214 | I18: 0.5562930186 | J18: 0 | K18: 0 | L18: 58.21774358 | M18: 14.51531374 | N18: 194.0926848 | O18: 99.00200117 | P18: 180 | Q18: 0 | W18: JNC/B | X18: JNC/BX | Z18: JNC/BY | AB18: JNG3 | AC18: JNG3X | AE18: JNG3Y
A19: 15 | B19: 0.2617993878 | C19: 2.072740661 | D19: 0.5176380902 | E19: -1.995407686 | F19: 81.66804517 | G19: 1.425376282 | H19: 31.42258602 | I19: 0.5484275855 | J19: 0 | K19: 0 | L19: 57.95554958 | M19: 15.52914271 | N19: 194.4908054 | O19: 98.94451253 | P19: 180 | Q19: 0 | W19: =(X19^2+Z19^2)^0.5 -> 9435.794778 | X19: =-(U8^2*O2) -> -7422.792228 | Y19: =Y17+X19 -> -21624.36869 | Z19: =-(U8^2*P2) -> -5825.493852 | AA19: =AA17+Z19 -> -6073.383292 | AB19: =(AC19^2+AE19^2)^0.5 -> 4717.897389 | AC19: =-(U8^2*X3) -> -3711.396114 | AD19: =Y17+AC19 -> -17912.97258 | AE19: =-(U8^2*Z3) -> -2912.746926 | AF19: =AA17+AE19 -> -3160.636365
A20: 16 | B20: 0.2792526803 | C20: 2.069009357 | D20: 0.5512747116 | E20: -2.008467251 | F20: 81.45721602 | G20: 1.421696619 | H20: 30.9775217 | I20: 0.5406597477 | J20: 0 | K20: 0 | L20: 57.67570176 | M20: 16.53824135 | N20: 194.8547889 | O20: 98.89052152 | P20: 180 | Q20: 0 | W20: JTC/B | X20: JTC/BX | Z20: JTC/BY | AB20: JTG3 | AC20: JTG3X | AE20: JTG3Y
A21: 17 | B21: 0.2967059728 | C21: 2.065043805 | D21: 0.5847434094 | E21: -2.022346683 | F21: 81.26599595 | G21: 1.418359199 | H21: 30.53822412 | I21: 0.5329925587 | J21: 0 | K21: 0 | L21: 57.37828536 | M21: 17.54230228 | N21: 195.1847447 | O21: 98.84039421 | P21: 180 | Q21: 0 | W21: =(X21^2+Z21^2)^0.5 -> 2399.860949 | X21: =-U15*P2 -> -1481.63197 | Y21: =Y19+X21 -> -23106.00066 | Z21: =U15*O2 -> 1887.882221 | AA21: =AA19+Z21 -> -4185.501071 | AB21: =(AC21^2+AE21^2)^0.5 -> 1199.930475 | AC21: =-U15*Z3 -> -740.8159851 | AD21: =AD19+AC21 -> -18653.78856 | AE21: =U15*X3 -> 943.9411105 | AF21: =AF19+AE21 -> -2216.695255
A22: 18 | B22: 0.3141592654 | C22: 2.060845213 | D22: 0.6180339887 | E22: -2.037041754 | F22: 81.09432374 | G22: 1.415362954 | H22: 30.10484945 | I22: 0.5254287437 | J22: 0 | K22: 0 | L22: 57.06339098 | M22: 18.54101966 | N22: 195.4808262 | O22: 98.79445339 | P22: 180 | Q22: 0 | W22: JNC | X22: JNCX | Y22: JNCY | AB22: JNG4 | AC22: JNG4X | AD22: JNG4Y
A23: 19 | B23: 0.3316125579 | C23: 2.05641486 | D23: 0.6511363089 | E23: -2.052547988 | F23: 80.94211238 | G23: 1.412706365 | H23: 29.67753554 | I23: 0.5179707091 | J23: 0 | K23: 0 | L23: 56.73111454 | M23: 19.53408927 | N23: 195.7432276 | O23: 98.75297862 | P23: 180 | Q23: 0 | W23: =(X23^2+Y23^2)^0.5 -> 5531.627177 | X23: =-(V8^2*Q2) -> -323.985681 | Y23: =-(V8^2*R2) -> -5522.131156 | AB23: =(AC23^2+AD23^2)^0.5 -> 369.6816871 | AC23: =-(V8^2*AC3) -> 21.65214128 | AD23: =-(V8^2*AE3) -> 369.0470627
A24: 20 | B24: 0.3490658504 | C24: 2.051754097 | D24: 0.6840402867 | E24: -2.068860662 | F24: 80.80925042 | G24: 1.410387486 | H24: 29.25640261 | I24: 0.5106205528 | J24: 0 | K24: 0 | L24: 56.38155725 | M24: 20.5212086 | N24: 195.9721812 | O24: 98.71620651 | P24: 180 | Q24: 0 | W24: JTC | X24: JTCX | Z24: JTCY | AB24: JTG4 | AC24: JTG4X | AE24: JTG4Y
A25: 21 | B25: 0.3665191429 | C25: 2.046864341 | D25: 0.7167358991 | E25: -2.085974806 | F25: 80.69560336 | G25: 1.408403971 | H25: 28.8415538 | I25: 0.5033800753 | J25: 0 | K25: 0 | L25: 56.01482559 | M25: 21.50207697 | N25: 196.1679548 | O25: 98.68433127 | P25: 180 | Q25: 0 | W25: =(X25^2+Z25^2)^0.5 -> 22821.19161 | X25: =-V15*R2 -> -22782.01498 | Y25: =X23+X25 -> -23106.00066 | Z25: =V15*Q2 -> 1336.630085 | AA25: =Y23+Z25 -> -4185.501071 | AB25: =(AC25^2+AE25^2)^0.5 -> 1525.152789 | AC25: =-(V15*AE3) -> 1522.534593 | AD25: =AC23+AC25 -> 1544.186734 | AE25: =V15*AC3 -> -89.32772384 | AF25: =AD23+AE25 -> 279.7193389
A26: 22 | B26: 0.3839724354 | C26: 2.041747084 | D26: 0.7492131868 | E26: -2.103885207 | F26: 80.60101516 | G26: 1.406753095 | H26: 28.43307595 | I26: 0.4962507917 | J26: 0 | K26: 0 | L26: 55.63103127 | M26: 22.4763956 | N26: 196.3308482 | O26: 98.65750552 | P26: 180 | Q26: 0
A27: 23 | B27: 0.401425728 | C27: 2.036403883 | D27: 0.781462257 | E27: -2.12258641 | F27: 80.52530961 | G27: 1.405431784 | H27: 28.03104025 | I27: 0.4892339452 | J27: 0 | K27: 0 | L27: 55.23029121 | M27: 23.44386771 | N27: 196.4611912 | O27: 98.63584128 | P27: 180 | Q27: 0 | T27: FUERZAS Y MOMENTOS INERCIALES
A28: 24 | B28: 0.4188790205 | C28: 2.030836366 | D28: 0.8134732862 | E28: -2.142072719 | F28: 80.46829187 | G28: 1.404436637 | H28: 27.63550309 | I28: 0.4823305193 | J28: 0 | K28: 0 | L28: 54.81272746 | M28: 24.40419858 | N28: 196.5593402 | O28: 98.61941113 | P28: 180 | Q28: 0 | T28: BARRA 2 | V28: FI2 | W28: FI2x | Y28: FI2y
A29: 25 | B29: 0.436332313 | C29: 2.02504623 | D29: 0.8452365235 | E29: -2.162338196 | F29: 80.42974992 | G29: 1.403763953 | H29: 27.24650674 | I29: 0.4755412524 | J29: 0 | K29: 0 | L29: 54.37846722 | M29: 25.3570957 | N29: 196.6256762 | O29: 98.60824962 | P29: 180 | Q29: 0 | T29: m2 [kg] | U29: ='Insertar parámetros'!C25 -> 0.081712212 | V29: =(W29^2+Y29^2)^0.5 -> 397.9546439 | W29: =-U29*(AC17+AC15) -> -397.8940335 | X29: =U3+W29 -> -418.463783 | Y29: =-U29*(AE17+AD15) -> -6.945266189 | Z29: =Y29+V3 -> -7.304312502
A30: 26 | B30: 0.4537856055 | C30: 2.019035237 | D30: 0.8767422936 | E30: -2.18337667 | F30: 80.40945598 | G30: 1.403409757 | H30: 26.86408026 | I30: 0.468866651 | J30: 0 | K30: 0 | L30: 53.92764278 | M30: 26.30226881 | N30: 196.6606018 | O30: 98.60235468 | P30: 180 | Q30: 0 | T30: G2 [N·103] | U30: =U29*9.8066494*10^3 -> 801.3230148 | V30: MI2
A31: 27 | B31: 0.471238898 | C31: 2.012805219 | D31: 0.9079809995 | E31: -2.205181732 | F31: 80.40716798 | G31: 1.403369823 | H31: 26.48824019 | I31: 0.4623070043 | J31: 0 | K31: 0 | L31: 53.46039145 | M31: 27.23942998 | N31: 196.6645392 | O31: 98.60168929 | P31: 180 | Q31: 0 | T31: IG2y [kg·mm2] | U31: ='Insertar parámetros'!C29 -> 121.3404099 | V31: =-U31*T15 -> 0
A32: 28 | B32: 0.4886921906 | C32: 2.006358074 | D32: 0.9389431256 | E32: -2.22774674 | F32: 80.42263095 | G32: 1.403639703 | H32: 26.11899142 | I32: 0.4558623976 | J32: 0 | K32: 0 | L32: 52.97685557 | M32: 28.16829377 | N32: 196.637928 | O32: 98.60618313 | P32: 180 | Q32: 0 | T32: BARRA 3 | V32: FI3 | W32: FI3x | Y32: FI3y
A33: 29 | B33: 0.5061454831 | C33: 1.999695766 | D33: 0.9696192405 | E33: -2.25106482 | F33: 80.45557837 | G33: 1.404214744 | H33: 25.756328 | I33: 0.4495327268 | J33: 0 | K33: 0 | L33: 52.47718243 | M33: 29.08857721 | N33: 196.5812227 | O33: 98.61573431 | P33: 180 | Q33: 0 | T33: m3 [kg] | U33: ='Insertar parámetros'!C26 -> 0.182159901 | V33: =(W33^2+Y33^2)^0.5 -> 886.7724514 | W33: =-U33*(AC21+AC19) -> 811.0145152 | X33: =Y3+W33 -> 933.9384305 | Y33: =-U33*(AE21+AE19) -> 358.6374725 | Z33: =AA3+Y33 -> 409.0752108
A34: 30 | B34: 0.5235987756 | C34: 1.992820323 | D34: 1 | E34: -2.275128869 | F34: 80.50573345 | G34: 1.405090116 | H34: 25.40023385 | I34: 0.4433177115 | J34: 0 | K34: 0 | L34: 51.96152423 | M34: 30 | N34: 196.494891 | O34: 98.63021125 | P34: 180 | Q34: 0 | T34: G3[N·103] | U34: =U33*9.8066494*10^3 -> 1786.378284 | V34: MI3
A35: 31 | B35: 0.5410520681 | C35: 1.985733841 | D35: 1.03007615 | E35: -2.299931558 | F35: 80.57281049 | G35: 1.406260831 | H35: 25.05068361 | I35: 0.4372169088 | J35: 0 | K35: 0 | L35: 51.43003804 | M35: 30.90228449 | N35: 196.3794118 | O35: 98.64945448 | P35: 180 | Q35: 0 | T35: IG3y [kg·mm2] | U35: ='Insertar parámetros'!C30 -> 737.2761826 | V35: =-U35*U15 -> -11058.502
A36: 32 | B36: 0.5585053606 | C36: 1.978438477 | D36: 1.059838528 | E36: -2.325465331 | F36: 80.65651597 | G36: 1.407721767 | H36: 24.70764334 | I36: 0.4312297266 | J36: 0 | K36: 0 | L36: 50.88288577 | M36: 31.79515585 | N36: 196.2352738 | O36: 98.67327847 | P36: 180 | Q36: 0 | T36: BARRA 4 | V36: FI4 | W36: FI4x | Y36: FI4y
A37: 33 | B37: 0.5759586532 | C37: 1.970936454 | D37: 1.08927807 | E37: -2.35172241 | F37: 80.75654979 | G37: 1.409467686 | H37: 24.37107127 | I37: 0.4253554359 | J37: 0 | K37: 0 | L37: 50.32023408 | M37: 32.6783421 | N37: 196.0629736 | O37: 98.70147355 | P37: 180 | Q37: 0 | T37: m4 [kg] | U37: ='Insertar parámetros'!C27 -> 0.124048354 | V37: =(W37^2+Y37^2)^0.5 -> 194.6711802 | W37: =-U37*(AC23+AC25) -> -191.5538227 | X37: =W37+AD3 -> -11.9452471 | Y37: =-U37*(AE25+AD23) -> -34.69872357 | Z37: =Y37+AF3 -> -41.37030593
A38: 34 | B38: 0.5934119457 | C38: 1.963230058 | D38: 1.118385807 | E38: -2.378694797 | F38: 80.87260633 | G38: 1.411493255 | H38: 24.0409185 | I38: 0.4195931831 | J38: 0 | K38: 0 | L38: 49.74225435 | M38: 33.55157421 | N38: 195.8630141 | O38: 98.7338077 | P38: 180 | Q38: 0 | T38: G4 [N·103] | U38: =U37*9.8066494*10^3 -> 1216.498716 | V38: MI4
A39: 35 | B39: 0.6108652382 | C39: 1.955321635 | D39: 1.147152873 | E39: -2.406374276 | F39: 81.00437548 | G39: 1.413793061 | H39: 23.71712969 | I39: 0.4139420023 | J39: 0 | K39: 0 | L39: 49.14912266 | M39: 34.41458618 | N39: 195.6359038 | O39: 98.77002841 | P39: 180 | Q39: 0 | T39: IG4y [kg·mm2] | U39: ='Insertar parámetros'!C31 -> 163.0414916 | V39: =-U39*V15 -> -37208.0112
A40: 36 | B40: 0.6283185307 | C40: 1.947213595 | D40: 1.175570505 | E40: -2.434752416 | F40: 81.15154361 | G40: 1.416361629 | H40: 23.39964368 | I40: 0.4084008259 | J40: 0 | K40: 0 | L40: 48.54101966 | M40: 35.26711514 | N40: 195.3821549 | O40: 98.80986443 | P40: 180 | Q40: 0
A41: 37 | B41: 0.6457718232 | C41: 1.938908408 | D41: 1.203630046 | E41: -2.463820572 | F41: 81.31379447 | G41: 1.419193441 | H41: 23.08839411 | I41: 0.4029684962 | J41: 0 | K41: 0 | L41: 47.9181306 | M41: 36.10890139 | N41: 195.1022827 | O41: 98.85302756 | P41: 180 | Q41: 0 | T41: Eslabón i | U41: Tabla Parámetros
A42: 38 | B42: 0.6632251158 | C42: 1.930408603 | D42: 1.231322951 | E42: -2.49356989 | F42: 81.49081006 | G42: 1.422282946 | H42: 22.78331003 | I42: 0.3976437746 | J42: 0 | K42: 0 | L42: 47.28064522 | M42: 36.93968852 | N42: 194.7968042 | O42: 98.89921428 | P42: 180 | Q42: 0 | U42: 1 | V42: 2 | X42: 3 | Z42: 4
A43: 39 | B43: 0.6806784083 | C43: 1.921716769 | D43: 1.258640782 | E43: -2.523991308 | F43: 81.68227136 | G43: 1.425624576 | H43: 22.48431645 | I43: 0.3924253522 | J43: 0 | K43: 0 | L43: 46.62875769 | M43: 37.75922346 | N43: 194.4662376 | O43: 98.94810745 | P43: 180 | Q43: 0 | T43: ri | U43: =A2 -> 180 | V43: =B2 -> 60 | X43: =C2 -> 160 | Z43: =D2 -> 100
A44: 40 | B44: 0.6981317008 | C44: 1.912835554 | D44: 1.285575219 | E44: -2.555075559 | F44: 81.88785911 | G44: 1.429212759 | H44: 22.19133485 | I44: 0.3873118585 | J44: 0 | K44: 0 | L44: 45.96266659 | M44: 38.56725658 | N44: 194.1111013 | O44: 98.99937787 | P44: 180 | Q44: 0 | T44: ai0 | U44: - | V44: =T3 -> 20.57288287 | X44: =W3 -> 80 | Z44: =AB3 -> 6.683055008
A45: 41 | B45: 0.7155849933 | C45: 1.903767664 | D45: 1.312118058 | E45: -2.586813175 | F45: 82.10725445 | G45: 1.43304193 | H45: 21.90428366 | I45: 0.3823018701 | J45: 0 | K45: 0 | L45: 45.28257481 | M45: 39.36354174 | N45: 193.7319133 | O45: 99.05268577 | P45: 180 | Q45: 0 | T45: Φi | U45: - | V45: =T5 -> 180 | W45: =U5 -> 3.141592654 | X45: =W5 -> 0 | Y45: =X5 -> 0 | Z45: =AB5 -> 180 | AA45: =AC5 -> 3.141592654
A46: 42 | B46: 0.7330382858 | C46: 1.89451586 | D46: 1.338261213 | E46: -2.619194489 | F46: 82.3401395 | G46: 1.437106541 | H46: 21.62307874 | I46: 0.3773939185 | J46: 0 | K46: 0 | L46: 44.58868953 | M46: 40.14783638 | N46: 193.3291903 | O46: 99.10768227 | P46: 180 | Q46: 0 | T46: ai'0 | U46: - | V46: - | X46: =(W3^2+C2^2-2*W3*C2*COS(X5))^0.5 -> 80 | Z46: -
A47: 43 | B47: 0.7504915784 | C47: 1.885082961 | D47: 1.36399672 | E47: -2.652209635 | F47: 82.58619795 | G47: 1.441401071 | H47: 21.34763383 | I47: 0.3725864979 | J47: 0 | K47: 0 | L47: 43.8812221 | M47: 40.9199016 | N47: 192.9034478 | O47: 99.16401079 | P47: 180 | Q47: 0 | T47: Φi' | U47: - | V47: - | X47: =Y47*180/PI() -> 180 | Y47: =PI()-(ASIN(W3/X46*SIN(X5))) -> 3.141592654 | Z47: -
A48: 44 | B48: 0.7679448709 | C48: 1.87547184 | D48: 1.389316741 | E48: -2.685848559 | F48: 82.84511555 | G48: 1.445920035 | H48: 21.07786091 | I48: 0.3678780721 | J48: 0 | K48: 0 | L48: 43.16038802 | M48: 41.67950223 | N48: 192.4551989 | O48: 99.2213083 | P48: 180 | Q48: 0 | T48: mi0 | U48: - | V48: =U29 -> 0.081712212 | X48: =U33 -> 0.182159901 | Z48: =U37 -> 0.124048354
A49: 45 | B49: 0.7853981634 | C49: 1.865685425 | D49: 1.414213562 | E49: -2.720101013 | F49: 83.11658054 | G49: 1.450657993 | H49: 20.81367057 | I49: 0.3632670809 | J49: 0 | K49: 0 | L49: 42.42640687 | M49: 42.42640687 | N49: 191.9849545 | O49: 99.27920662 | P49: 180 | Q49: 0 | T49: RESOLUCIÓN
A50: 46 | B50: 0.8028514559 | C50: 1.855726696 | D50: 1.438679601 | E50: -2.754956563 | F50: 83.40028407 | G50: 1.455609554 | H50: 20.5549724 | I50: 0.3587519461 | J50: 0 | K50: 0 | L50: 41.67950223 | M50: 43.16038802 | N50: 191.4932225 | O50: 99.33733354 | P50: 180 | Q50: 0 | T50: m2a2 | U50: =X48*X46*(V43/X43) -> 5.46479703
A51: 47 | B51: 0.8203047484 | C51: 1.845598688 | D51: 1.462707403 | E51: -2.790404592 | F51: 83.69592057 | G51: 1.460769384 | H51: 20.30167527 | I51: 0.3543310771 | J51: 0 | K51: 0 | L51: 40.9199016 | M51: 43.8812221 | N51: 190.980508 | O51: 99.39531399 | P51: 180 | Q51: 0 | T51: Φ2 = Φ3'0 | U51: =X47 -> 180 | V51: =Y47 -> 3.141592654
A52: 48 | B52: 0.837758041 | C52: 1.835304485 | D52: 1.486289651 | E52: -2.826434302 | F52: 84.00318802 | G52: 1.466132213 | H52: 20.05368762 | I52: 0.3500028761 | J52: 0 | K52: 0 | L52: 40.14783638 | M52: 44.58868953 | N52: 190.4473126 | O52: 99.45277099 | P52: 180 | Q52: 0 | T52: m4a4 | U52: =X48*X44*(Z43/X43) -> 9.10799505
A53: 49 | B53: 0.8552113335 | C53: 1.824847223 | D53: 1.50941916 | E53: -2.863034719 | F53: 84.32178827 | G53: 1.471692837 | H53: 19.81091773 | I53: 0.3457657423 | J53: 0 | K53: 0 | L53: 39.36354174 | M53: 45.28257481 | N53: 189.8941346 | O53: 99.5093267 | P53: 180 | Q53: 0 | T53: Φ4 = Φ30 + 180 | U53: =X45+180 -> 180 | V53: =U53*PI()/180 -> 3.141592654
A54: 50 | B54: 0.872664626 | C54: 1.814230088 | D54: 1.532088886 | E54: -2.900194693 | F54: 84.65142726 | G54: 1.477446122 | H54: 19.573274 | I54: 0.3416180768 | J54: 0 | K54: 0 | L54: 38.56725658 | M54: 45.96266659 | N54: 189.3214684 | O54: 99.56460328 | P54: 180 | Q54: 0 | T54: m20a20 | U54: =V48*V44 -> 1.681055767
A55: 51 | B55: 0.8901179185 | C55: 1.803456313 | D55: 1.554291923 | E55: -2.937902905 | F55: 84.99181521 | G55: 1.483387013 | H55: 19.34066512 | I55: 0.3375582859 | J55: 0 | K55: 0 | L55: 37.75922346 | M55: 46.62875769 | N55: 188.729805 | O55: 99.61822376 | P55: 180 | Q55: 0 | T55: m40a40 | U55: =Z48*Z44 -> 0.8290219734
A56: 52 | B56: 0.907571211 | C56: 1.79252918 | D56: 1.576021507 | E56: -2.976147869 | F56: 85.34266681 | G56: 1.489510528 | H56: 19.11300029 | I56: 0.333584785 | J56: 0 | K56: 0 | L56: 36.93968852 | M56: 47.28064522 | N56: 188.1196314 | O56: 99.66981281 | P56: 180 | Q56: 0 | T56: m2*a2* | U56: =(U50^2+U54^2-2*U50*U54*COS(V51-W45))^0.5 -> 3.783741263
A57: 53 | B57: 0.9250245036 | C57: 1.781452019 | D57: 1.59727102 | E57: -3.014917935 | F57: 85.70370138 | G57: 1.49581177 | H57: 18.89018942 | I57: 0.3296960018 | J57: 0 | K57: 0 | L57: 36.10890139 | M57: 47.9181306 | N57: 187.4914307 | O57: 99.71899752 | P57: 180 | Q57: 0 | T57: Φ2* | U57: =V57*180/PI() -> 180 | V57: =ATAN2(U50*COS(V51)-U54*COS(W45),U50*SIN(V51)-U54*SIN(W45)) -> 3.141592654
A58: 54 | B58: 0.9424777961 | C58: 1.770228202 | D58: 1.618033989 | E58: -3.054201294 | F58: 86.07464293 | G58: 1.502285922 | H58: 18.67214328 | I58: 0.3258903786 | J58: 0 | K58: 0 | L58: 35.26711514 | M58: 48.54101966 | N58: 186.8456824 | O58: 99.765408 | P58: 180 | Q58: 0 | T58: m4*a4* | U58: =(U52^2+U55^2-2*U52*U55*COS(V53-AA45))^0.5 -> 8.278973077
A59: 55 | B59: 0.9599310886 | C59: 1.758861149 | D59: 1.638304089 | E59: -3.093985978 | F59: 86.45522028 | G59: 1.508928249 | H59: 18.45877363 | I59: 0.3221663758 | J59: 0 | K59: 0 | L59: 34.41458618 | M59: 49.14912266 | N59: 186.1828617 | O59: 99.80867809 | P59: 180 | Q59: 0 | T59: Φ4* | U59: =V59*180/PI() -> 180 | V59: =ATAN2(U52*COS(V53)-U55*COS(AA45),U52*SIN(V53)-U55*SIN(AA45)) -> 3.141592654
A60: 56 | B60: 0.9773843811 | C60: 1.747354323 | D60: 1.658075145 | E60: -3.13425987 | F60: 86.84516713 | G60: 1.515734106 | H60: 18.2499934 | I60: 0.3185224733 | J60: 0 | K60: 0 | L60: 33.55157421 | M60: 49.74225435 | N60: 185.5034402 | O60: 99.84844589 | P60: 180 | Q60: 0
A61: 57 | B61: 0.9948376736 | C61: 1.735711228 | D61: 1.677341136 | E61: -3.175010702 | F61: 87.24422211 | G61: 1.522698929 | H61: 18.04571676 | I61: 0.3149571733 | J61: 0 | K61: 0 | L61: 32.6783421 | M61: 50.32023408 | N61: 184.8078855 | O61: 99.88435431 | P61: 180 | Q61: 0 | T61: Contrapeso A
A62: 58 | B62: 1.012290966 | C62: 1.723935411 | D62: 1.696096192 | E62: -3.21622606 | F62: 87.65212877 | G62: 1.529818243 | H62: 17.84585924 | I62: 0.3114690016 | J62: 0 | K62: 0 | L62: 31.79515585 | M62: 50.88288577 | N62: 184.0966616 | O62: 99.91605158 | P62: 180 | Q62: 0 | T62: m2*[kg] | U62: G2* [N·103] | V62: IG2y* [kg·mm2] | W62: a2* | X62: a2x* | Y62: a2y*
A63: 59 | B63: 1.029744259 | C63: 1.71203046 | D63: 1.714334601 | E63: -3.25789339 | F63: 88.06863562 | G63: 1.537087659 | H63: 17.65033784 | I63: 0.3080565094 | J63: 0 | K63: 0 | L63: 30.90228449 | M63: 51.43003804 | N63: 183.3702284 | O63: 99.94319167 | P63: 180 | Q63: 0 | T63: =U56/W63 -> 0.06678407786 | U63: =T63*9.8066494*10^3 -> 654.9280371 | V63: ='Insertar parámetros'!C32 -> 49.04199115 | W63: ='Insertar parámetros'!C18 -> 56.65633763 | X63: =W63*COS(B4+V57) -> -56.64770859 | Y63: =W63*SIN(B4+V57) -> -0.9887894315
A64: 60 | B64: 1.047197551 | C64: 1.7 | D64: 1.732050808 | E64: -3.3 | F64: 88.49349609 | G64: 1.544502873 | H64: 17.45907108 | I64: 0.3047182747 | J64: 0 | K64: 0 | L64: 30 | M64: 51.96152423 | N64: 182.6290424 | O64: 99.96543471 | P64: 180 | Q64: 0 | T64: VG2* | U64: VG2X* | W64: VG2Y*
A65: 61 | B65: 1.064650844 | C65: 1.687847696 | D65: 1.749239414 | E65: -3.342533063 | F65: 88.92646856 | G65: 1.552059669 | H65: 17.2719791 | I65: 0.3014529036 | J65: 0 | K65: 0 | L65: 29.08857721 | M65: 52.47718243 | N65: 181.8735562 | O65: 99.9824474 | P65: 180 | Q65: 0 | T65: =(U65^2+W65^2)^0.5 -> 871.7144107 | U65: =-T8*Y63 -> 15.21351419 | W65: =T8*X63 -> -871.5816444
A66: 62 | B66: 1.082104136 | C66: 1.67557725 | D66: 1.765895186 | E66: -3.385479624 | F66: 89.36731627 | G66: 1.559753913 | H66: 17.08898368 | I66: 0.298259031 | J66: 0 | K66: 0 | L66: 28.16829377 | M66: 52.97685557 | N66: 181.104219 | O66: 99.99390332 | P66: 180 | Q66: 0 | T66: JNG2* | U66: JNG2X* | W66: JNG2Y* | Y66: JTG2* | Z66: JTG2X* | AB66: JTG2Y*
A67: 63 | B67: 1.099557429 | C67: 1.6631924 | D67: 1.782013048 | E67: -3.428826601 | F67: 89.81580728 | G67: 1.567581557 | H67: 16.91000833 | I67: 0.295135322 | J67: 0 | K67: 0 | L67: 27.23942998 | M67: 53.46039145 | N67: 180.3214764 | O67: 99.99948326 | P67: 180 | Q67: 0 | T67: =(U67^2+W67^2)^0.5 -> 13412.19792 | U67: =-(T8^2*X63) -> 13410.15518 | W67: =-(T8^2*Y63) -> 234.0751294 | Y67: =(Z67^2+AB67^2)^0.5 -> 0 | Z67: =-T15*Y63 -> 0 | AA67: =Z67+U67 -> 13410.15518 | AB67: =T15*X63 -> 0 | AC67: =W67+AB67 -> 234.0751294
A68: 64 | B68: 1.117010721 | C68: =$F$2-COS(B68)*($E$2+1)-$G$2 -> 1.650696917 | D68: 1.797588093 | E68: =COS(B68)-$F$2-$E$2*COS(B68)-$G$2 -> -3.472560789 | F68: 90.27171443 | G68: =2*ATAN((-D68+(D68^2-4*C68*E68)^0.5)/(2*C68)) -> 1.575538638 | H68: =I68*180/PI() -> 16.73497834 | I68: 0.2920804723 | J68: 0 | K68: 0 | L68: =$B$2*COS(B68) -> 26.30226881 | M68: =$B$2*SIN(B68) -> 53.92764278 | N68: =$P$4+$D$2*COS(G68) -> 179.5257706 | O68: =$D$2*SIN(G68) -> 99.99887553 | P68: =$A$2 -> 180 | Q68: 0 | T68: FI2* | U68: FI2X* | W68: FI2Y* | Y68: MI2*
A69: 65 | B69: =A69*PI()/180 -> 1.134464014 | C69: 1.638094609 | D69: =2*SIN(B69) -> 1.812615574 | E69: -3.516668867 | F69: 90.73481527 | G69: 1.583621273 | H69: 16.56382077 | I69: 0.2890932091 | J69: 0 | K69: 0 | L69: 25.3570957 | M69: 54.37846722 | N69: 178.7175406 | O69: 99.99177615 | P69: 180 | Q69: 0 | T69: =(U69^2+W69^2)^0.5 -> 895.7212704 | U69: =-T63*(Z67+U67) -> -895.5848477 | V69: =X63+U69 -> -952.2325563 | W69: =-T63*(AB67+W67) -> -15.63249167 | X69: =W69+Y63 -> -16.6212811 | Y69: =-V63*T15 -> 0
A70: 66 | B70: 1.151917306 | C70: 1.625389314 | D70: 1.827090915 | E70: -3.561137399 | F70: =G70*180/PI() -> 91.20489198 | G70: 1.591825659 | H70: 16.3964645 | I70: 0.2861722912 | J70: 0 | K70: 0 | L70: 24.40419858 | M70: 54.81272746 | N70: 177.8972218 | O70: 99.97788917 | P70: 180 | Q70: 0 | T70: Contrapeso B
A71: 67 | B71: 1.169370599 | C71: 1.612584903 | D71: 1.841009707 | E71: -3.60595284 | F71: 91.68173128 | G71: 1.600148075 | H71: 16.23284028 | I71: 0.2833165098 | J71: 0 | K71: 0 | L71: 23.44386771 | M71: 55.23029121 | N71: 177.0652466 | O71: 99.95692684 | P71: 180 | Q71: 0 | T71: m4*[kg] | U71: G4* [N·103] | V71: IG4y* [kg·mm2] | W71: a4* | X71: a4x* | Z71: a4y*
A72: 68 | B72: 1.186823891 | C72: 1.599685275 | D72: 1.854367709 | E72: -3.651101538 | F72: 92.16512434 | G72: 1.608584875 | H72: 16.07288072 | I72: =ATAN2(N72-L72,O72-M72) -> 0.2805246889 | J72: 0 | K72: 0 | L72: 22.4763956 | M72: 55.63103127 | N72: 176.2220445 | O72: 99.92860978 | P72: 180 | Q72: 0 | T72: =U58/W72 -> 0.1343969878 | U72: =T72*9.8066494*10^3 -> 1317.98414 | V72: ='Insertar parámetros'!C33 -> 120.7270852 | W72: ='Insertar parámetros'!C19 -> 61.60088266 | X72: =W72*COS(G4+V59) -> -3.607944512 | Y72: =P4+X72 -> 176.3920555 | Z72: =W72*SIN(G4+V59) -> -61.4951338
A73: 69 | B73: 1.204277184 | C73: 1.58669436 | D73: 1.867160853 | E73: -3.696569741 | F73: 92.65486669 | G73: 1.617132492 | H73: 15.91652032 | I73: 0.2777956851 | J73: 0 | K73: 0 | L73: 21.50207697 | M73: 56.01482559 | N73: 175.3680414 | O73: 99.8926672 | P73: 180 | Q73: 0 | T73: VG4* | U73: VG4X* | W73: VG4Y*
A74: 70 | B74: 1.221730476 | C74: 1.573616115 | D74: 1.879385242 | E74: -3.742343599 | F74: 93.15075814 | G74: 1.62578743 | H74: 15.76369546 | I74: 0.2751283881 | J74: 0 | K74: 0 | L74: 20.5212086 | M74: 56.38155725 | N74: 174.5036608 | O74: 99.84883703 | P74: 180 | Q74: 0 | T74: =(U74^2+W74^2)^0.5 -> 458.1560078 | U74: =-V8*Z72 -> -457.3695016 | W74: =V8*X72 -> 26.83405469
A75: 71 | B75: 1.239183769 | C75: 1.560454524 | D75: 1.891037151 | E75: -3.788409168 | F75: 93.65260263 | G75: 1.634546269 | H75: 15.61434442 | I75: 0.2725217206 | J75: 0 | K75: 0 | L75: 19.53408927 | M75: 56.73111454 | N75: 173.629323 | O75: 99.79686605 | P75: 180 | Q75: 0 | T75: JNG4* | U75: JNG4X* | W75: JNG4Y* | Y75: JTG4* | Z75: JTG4X* | AB75: JTG4Y*
A76: 72 | B76: 1.256637061 | C76: 1.547213595 | D76: 1.902113033 | E76: -3.834752416 | F76: 94.16020818 | G76: 1.643405657 | H76: 15.46840738 | I76: 0.2699746388 | J76: 0 | K76: 0 | L76: 18.54101966 | M76: 57.06339098 | N76: 172.7454454 | O76: 99.73651005 | P76: 180 | Q76: 0 | T76: =(U76^2+W76^2)^0.5 -> 3407.531166 | U76: =-(V8^2*X72) -> 199.5780391 | W76: =-(V8^2*Z72) -> 3401.681533 | Y76: =(Z76^2+AB76^2)^0.5 -> 14058.05546 | Z76: =-V15*Z72 -> 14033.92231 | AA76: =U76+Z76 -> 14233.50035 | AB76: =V15*X72 -> -823.3759303 | AC76: =AB76+W76 -> 2578.305603
A77: 73 | B77: 1.274090354 | C77: 1.533897364 | D77: 1.912609512 | E77: -3.881359227 | F77: 94.67338671 | G77: 1.652362312 | H77: 15.32582642 | I77: 0.2674861317 | J77: 0 | K77: 0 | L77: 17.54230228 | M77: 57.37828536 | N77: 171.8524428 | O77: 99.66753389 | P77: 180 | Q77: 0 | T77: FI4* | U77: FI4X* | W77: FI4Y* | Y77: MI4*
A78: 74 | B78: 1.291543646 | C78: 1.520509885 | D78: 1.922523392 | E78: -3.928215404 | F78: 95.19195401 | G78: 1.661413019 | H78: 15.18654553 | I78: 0.2650552216 | J78: 0 | K78: 0 | L78: 16.53824135 | M78: 57.67570176 | N78: 170.9507272 | O78: 99.58971162 | P78: 180 | Q78: 0 | T78: =(U78^2+W78^2)^0.5 -> 1944.070858 | U78: =-T72*(Z76+U76) -> -1912.939574 | V78: =Y72+U78 -> -1736.547518 | W78: =-T72*(AB76+W76) -> -346.5165067 | X78: =W78+Z72 -> -408.0116405 | Y78: =-V72*V15 -> -27551.35944
A79: 75 | B79: 1.308996939 | C79: 1.507055236 | D79: 1.931851653 | E79: -3.975306674 | F79: 95.71572956 | G79: 1.670554627 | H79: 15.05051058 | I79: 0.2626809637 | J79: 0 | K79: 0 | L79: 15.52914271 | M79: 57.95554958 | N79: 170.0407079 | O79: 99.5028266 | P79: 180 | Q79: 0
A80: 76 | B80: 1.326450232 | C80: 1.493537516 | D80: 1.940591453 | E80: -4.022618692 | F80: 96.24453643 | G80: 1.679784048 | H80: 14.91766932 | I80: 0.2603624463 | J80: 0 | K80: 0 | L80: 14.51531374 | M80: 58.21774358 | N80: 169.1227916 | O80: 99.4066715 | P80: 180 | Q80: 0 | T80: CENTRO TOTAL DE MASA SIN EQUILIBRAR
A81: 77 | B81: 1.343903524 | C81: 1.479960843 | D81: 1.94874013 | E81: -4.070137048 | F81: 96.77820118 | G81: 1.689098255 | H81: 14.78797138 | I81: 0.2580987904 | J81: 0 | K81: 0 | L81: 13.49706326 | M81: 58.46220389 | N81: 168.1973825 | O81: 99.30104844 | P81: 180 | Q81: 0 | T81: mT | U81: STx | V81: STy | W81: ST | X81: Ω (º) | Y81: Ω (rad)
A82: 78 | B82: 1.361356817 | C82: 1.466329353 | D82: 1.956295201 | E82: -4.117847266 | F82: 97.31655373 | G82: 1.698494279 | H82: 14.66136828 | I82: 0.2558891494 | J82: 0 | K82: 0 | L82: 12.47470145 | M82: 58.68885604 | N82: 167.2648821 | O82: 99.18576901 | P82: 180 | Q82: 0 | T82: =U29+U33+U37 -> 0.387920467 | U82: =(U29*T84+U33*V84+U37*X84)/T82 -> 110.8246672 | V82: =(U29*U84+U33*W84+U37*Y84)/T82 -> 21.47552616 | W82: =(U82^2+V82^2)^0.5 -> 112.8862485 | X82: =Y82*180/PI() -> 10.96681457 | Y82: =ATAN2(U82,V82) -> 0.1914070226
A83: 79 | B83: 1.378810109 | C83: 1.452647196 | D83: 1.963254367 | E83: -4.165734813 | F83: 97.85942724 | G83: 1.707969209 | H83: 14.53781337 | I83: 0.2537327093 | J83: 0 | K83: 0 | L83: 11.44853972 | M83: 58.89763101 | N83: 166.3256896 | O83: 99.06065433 | P83: 180 | Q83: 0 | T83: SC2x | U83: SC2y | V83: SC3x | W83: SC3y | X83: SC4x | Y83: SC4y
A84: 80 | B84: 1.396263402 | C84: 1.438918542 | D84: 1.969615506 | E84: -4.213785103 | F84: 98.40665799 | G84: 1.717520188 | H84: 14.41726185 | I84: 0.2516286885 | J84: 0 | K84: 0 | L84: 10.41889066 | M84: 59.08846518 | N84: 165.3802015 | O84: 98.92553509 | P84: 180 | Q84: 0 | T84: =U3 -> -20.56974952 | U84: =V3 -> -0.3590463135 | V84: =Y3 -> 122.9239153 | W84: =AA3 -> 50.43773831 | X84: =AD3 -> 179.6085755 | Y84: =AF3 -> -6.671582357
A85: 81 | B85: 1.413716694 | C85: 1.425147572 | D85: 1.975376681 | E85: -4.261983498 | F85: 98.95808528 | G85: 1.72714441 | H85: 14.29967078 | I85: 0.249576337 | J85: 0 | K85: 0 | L85: 9.386067902 | M85: 59.26130044 | N85: 164.428812 | O85: 98.78025159 | P85: 180 | Q85: 0 | T85: CENTRO TOTAL DE MASA EQUILIBRADO
A86: 82 | B86: 1.431169987 | C86: 1.411338481 | D86: 1.980536137 | E86: -4.310315317 | F86: 99.51355127 | G86: 1.73683912 | H86: 14.184999 | I86: 0.247574937 | J86: 0 | K86: 0 | L86: 8.350386058 | M86: 59.41608412 | N86: 163.4719128 | O86: 98.62465378 | P86: 180 | Q86: 0 | T86: mT | U86: STx | V86: STy | W86: ST | X86: Ω (º) | Y86: Ω (rad)
A87: 83 | B87: 1.448623279 | C87: 1.397495475 | D87: 1.985092303 | E87: -4.358765838 | F87: 100.0729009 | G87: 1.746601613 | H87: 14.0732072 | I87: 0.245623802 | J87: 0 | K87: 0 | L87: 7.312160604 | M87: 59.5527691 | N87: 162.5098933 | O87: 98.45860128 | P87: 180 | Q87: 0 | T87: =U29+U33+U37+T63+T72 -> 0.5891015327 | U87: =(U29*T89+U33*V89+U37*X89+T63*T91+T72*V91)/T87 -> 106.7974689 | V87: =(U29*U89+U33*W89+U37*Y89+T63*U91+T72*W91)/T87 -> -3.015366182e-15 | W87: =(U87^2+V87^2)^0.5 -> 106.7974689 | X87: =Y87*180/PI() -> -1.617713956e-15 | Y87: =ATAN2(U87,V87) -> -2.823443489e-17
A88: 84 | B88: 1.466076572 | C88: 1.383622771 | D88: 1.989043791 | E88: -4.407320303 | F88: 100.6359817 | G88: 1.756429227 | H88: 13.96425785 | I88: 0.2437222771 | J88: 0 | K88: 0 | L88: 6.271707796 | M88: 59.67131372 | N88: 161.5431402 | O88: 98.28196339 | P88: 180 | Q88: 0 | T88: SC2x | U88: SC2y | V88: SC3x | W88: SC3y | X88: SC4x | Y88: SC4y
A89: 85 | B89: 1.483529864 | C89: 1.369724594 | D89: 1.992389396 | E89: -4.45596392 | F89: 101.2026439 | G89: 1.766319348 | H89: 13.8581152 | I89: 0.2418697384 | J89: 0 | K89: 0 | L89: 5.229344565 | M89: 59.77168189 | N89: 160.5720382 | O89: 98.09461913 | P89: 180 | Q89: 0 | T89: =U3 -> -20.56974952 | U89: =V3 -> -0.3590463135 | V89: =Y3 -> 122.9239153 | W89: =AA3 -> 50.43773831 | X89: =AD3 -> 179.6085755 | Y89: =AF3 -> -6.671582357
A90: 86 | B90: 1.500983157 | C90: 1.355805179 | D90: 1.995128101 | E90: -4.504681874 | F90: 101.77274 | G90: 1.776269401 | H90: 13.75474529 | I90: 0.2400655931 | J90: 0 | K90: 0 | L90: 4.185388425 | M90: 59.85384302 | N90: 159.5969694 | O90: 97.89645725 | P90: 180 | Q90: 0 | T90: SC2*x | U90: SC2*y | V90: SC4*x | W90: SC4*y
A91: 87 | B91: 1.518436449 | C91: 1.341868765 | D91: 1.99725907 | E91: -4.553459323 | F91: 102.3461247 | G91: 1.786276853 | H91: 13.65411591 | I91: 0.2383092791 | J91: 0 | K91: 0 | L91: 3.140157375 | M91: 59.91777209 | N91: 158.6183134 | O91: 97.68737625 | P91: 180 | Q91: 0 | T91: =X63 -> -56.64770859 | U91: =Y63 -> -0.9887894315 | V91: =Y72 -> 176.3920555 | W91: =Z72 -> -61.4951338
A92: 88 | B92: 1.535889742 | C92: 1.327919597 | D92: 1.998781654 | E92: -4.602281409 | F92: 102.9226551 | G92: 1.796339206 | H92: 13.5561966 | I92: 0.2366002648 | J92: 0 | K92: 0 | L92: 2.093969802 | M92: 59.96344962 | N92: 157.6364475 | O92: 97.46728436 | P92: 180 | Q92: 0
A93: 89 | B93: 1.553343034 | C93: 1.313961925 | D93: 1.99969539 | E93: -4.651133262 | F93: 103.5021902 | G93: 1.806454002 | H93: 13.46095866 | I93: 0.234938049 | J93: 0 | K93: 0 | L93: 1.047144386 | M93: 59.99086171 | N93: 156.6517467 | O93: 97.23609961 | P93: 180 | Q93: 0 | T93: REACCIONES EN BASTIDOR, EN LAS ARTICULACIONES Y MOMENTO MOTOR SIN EQUILIBRAR
A94: 90 | B94: 1.570796327 | C94: 1.3 | D94: 2 | E94: -4.7 | F94: 104.084591 | G94: 1.816618813 | H94: 13.36837509 | I94: 0.2333221609 | J94: 0 | K94: 0 | L94: 3.675445365e-15 | M94: 60 | N94: 155.6645833 | O94: 96.99374976 | P94: 180 | Q94: 0 | T94: ΣRA | U94: RAx | V94: RAy | W94: ΣFXbastidor | X94: ΣFbastidor
A95: 91 | B95: 1.588249619 | C95: 1.286038075 | D95: 1.99969539 | E95: -4.748866738 | F95: 104.6697203 | G95: 1.826831247 | H95: 13.27842064 | I95: 0.2317521596 | J95: 0 | K95: 0 | L95: -1.047144386 | M95: 59.99086171 | N95: 154.6753272 | O95: 96.74017236 | P95: 180 | Q95: 0 | T95: =(U95^2+V95^2)^0.5 -> 1548.857596 | U95: =-W29-W33-W37-U97 -> -88.76106144 | V95: =-Y29+U30-Y33+U34-Y37+U38-V97 -> 1546.31217 | W95: =U95+U97 -> -221.5666591 | X95: =(W95^2+W97^2)^0.5 -> 3494.238284
A96: 92 | B96: 1.605702912 | C96: 1.272080403 | D96: 1.998781654 | E96: -4.797718591 | F96: 105.2574428 | G96: 1.837088939 | H96: 13.19107175 | I96: 0.230227634 | J96: 0 | K96: 0 | L96: -2.093969802 | M96: 59.96344962 | N96: 153.6843461 | O96: 96.47531477 | P96: 180 | Q96: 0 | T96: ΣRD | U96: RDx | V96: RDy | W96: ΣFYbastidor
A97: 93 | B97: 1.623156204 | C97: 1.258131235 | D97: 1.99725907 | E97: -4.846540677 | F97: 105.8476245 | G97: 1.847389552 | H97: 13.1063066 | I97: 0.2287482029 | J97: 0 | K97: 0 | L97: -3.140157375 | M97: 59.91777209 | N97: 152.6920048 | O97: 96.19913409 | P97: 180 | Q97: 0 | T97: =(U97^2+V97^2)^0.5 -> 1945.432665 | U97: =(1/(R2-P2*(Q2/O2)))*((Q2/O2)*(P2*W37+V35+W33*Z3-Y33*X3+U34*X3-O2*(Y37-U38))-W37*(R2-AE3)-Y37*(AC3-Q2)+V39+U38*(AC3-Q2)) -> -132.8055977 | V97: =(1/O2)*(P2*U97+P2*W37+V35+W33*Z3-Y33*X3+U34*X3-O2*(Y37-U38)) -> 1940.894362 | W97: =V95+V97 -> 3487.206532
A98: 94 | B98: 1.640609497 | C98: 1.244194821 | D98: 1.995128101 | E98: -4.895318126 | F98: 106.440133 | G98: 1.857730777 | H98: 13.02410503 | I98: 0.227313515 | J98: 0 | K98: 0 | L98: -4.185388425 | M98: 59.85384302 | N98: 151.6986658 | O98: 95.91159723 | P98: 180 | Q98: 0 | T98: ΣRB | U98: RBx | V98: RBy | W98: MOMENTO MOTOR
A99: 95 | B99: 1.658062789 | C99: 1.230275406 | D99: 1.992389396 | E99: -4.94403608 | F99: 107.0348375 | G99: 1.868110328 | H99: 12.94444861 | I99: 0.2259232482 | J99: 0 | K99: 0 | L99: -5.229344565 | M99: 59.77168189 | N99: 150.7046889 | O99: 95.61268089 | P99: 180 | Q99: 0 | T99: =(U99^2+V99^2)^0.5 -> 884.0486205 | U99: =W33-U101 -> 486.6550949 | V99: =Y33-U34-V101 -> -738.043889 | W99: =(V95*A2+W29*V3+Y29*(A2-U3)+V31-U30*(A2-U3)+W33*(N2+Z3)+Y33*(A2-(M2+X3))+V35-U34*(A2-(M2+X3))+W37*AE3-Y37*AC3+V39+U38*AC3) -> 28302.47333
A100: 96 | B100: 1.675516082 | C100: 1.216377229 | D100: 1.989043791 | E100: -4.992679697 | F100: 107.6316081 | G100: 1.878525941 | H100: 12.86732058 | I100: 0.2245771101 | J100: 0 | K100: 0 | L100: -6.271707796 | M100: 59.67131372 | N100: 149.7104313 | O100: 95.30237158 | P100: 180 | Q100: 0 | T100: ΣRC | U100: RCx | V100: RCy
A101: 97 | B101: 1.692969374 | C101: 1.202504525 | D101: 1.985092303 | E101: -5.041234162 | F101: 108.2303164 | G101: 1.888975371 | H101: 12.79270587 | I101: 0.2232748377 | J101: 0 | K101: 0 | L101: -7.312160604 | M101: 59.5527691 | N101: 148.7162476 | O101: 94.98066557 | P101: 180 | Q101: 0 | T101: =(U101^2+V101^2)^0.5 -> 762.1619764 | U101: =-U97-W37 -> 324.3594203 | V101: =-V97-Y37+U38 -> -689.6969224
A102: 98 | B102: 1.710422667 | C102: 1.188661519 | D102: 1.980536137 | E102: -5.089684683 | F102: 108.8308348 | G102: 1.899456395 | H102: 12.72059111 | I102: 0.2220161977 | J102: 0 | K102: 0 | L102: -8.350386058 | M102: 59.41608412 | N102: 147.7224895 | O102: 94.64756898 | P102: 180 | Q102: 0 | T102: REACCIONES EN BASTIDOR, EN LAS ARTICULACIONES Y MOMENTO MOTOR EQUILIBRADO
A103: 99 | B103: 1.727875959 | C103: 1.174852428 | D103: 1.975376681 | E103: -5.138016502 | F103: 109.4330368 | G103: 1.909966802 | H103: 12.65096459 | I103: 0.2208009857 | J103: 0 | K103: 0 | L103: -9.386067902 | M103: 59.26130044 | N103: 146.7295061 | O103: 94.3030977 | P103: 180 | Q103: 0 | T103: ΣRA | U103: RAx | V103: RAy | W103: ΣFXbastidor | X103: ΣFbastidor
A104: 100 | B104: 1.745329252 | C104: 1.161081458 | D104: 1.969615506 | E104: -5.186214897 | F104: 110.0367966 | G104: 1.920504399 | H104: 12.58381631 | I104: 0.2196290271 | J104: 0 | K104: 0 | L104: -10.41889066 | M104: 59.08846518 | N104: 145.7376437 | O104: 93.94727744 | P104: 180 | Q104: 0 | T104: =(U104^2+V104^2)^0.5 -> 1525.863186 | U104: =-U69-W29-W33-W37-U78-U106 -> -76.07210385 | V104: =-W69+U63-Y29+U30-Y33+U34-Y37+U38-W78+U72-V106 -> 1523.965714 | W104: =U104+U106 -> 2586.957762 | X104: =(W104^2+W106^2)^0.5 -> 6371.118562
A105: 101 | B105: 1.762782545 | C105: 1.147352804 | D105: 1.963254367 | E105: -5.234265187 | F105: 110.6419892 | G105: 1.931067003 | H105: 12.51913795 | I105: 0.2185001767 | J105: 0 | K105: 0 | L105: -11.44853972 | M105: 58.89763101 | N105: 144.7472455 | O105: 93.58014372 | P105: 180 | Q105: 0 | T105: ΣRD | U105: RDx | V105: RDy | W105: ΣFYbastidor
A106: 102 | B106: 1.780235837 | C106: 1.133670647 | D106: 1.956295201 | E106: -5.282152734 | F106: 111.2484903 | G106: 1.941652444 | H106: 12.45692286 | I106: 0.2174143186 | J106: 0 | K106: 0 | L106: -12.47470145 | M106: 58.68885604 | N106: 143.7586519 | O106: 93.20174189 | P106: 180 | Q106: 0 | T106: =(U106^2+V106^2)^0.5 -> 5056.394773 | U106: =(1/(R2-P2*(Q2/O2)))*((Q2/O2)*(P2*(U78+W37)+V35+W33*Z3-Y33*X3+U34*X3-O2*(W78-U72+Y37-U38))-U78*(R2-Z72)-W78*(X72-Q2)+Y78+U72*(X72-Q2)-W37*(R2-AE3)-Y37*(AC3-Q2)+V39+U38*(AC3-Q2)) -> 2663.029866 | V106: =(1/O2)*(P2*U106+P2*(U78+W37)+V35+W33*Z3-Y33*X3+U34*X3-O2*(W78-U72+Y37-U38)) -> 4298.301994 | W106: =V104+V106 -> 5822.267708
A107: 103 | B107: 1.79768913 | C107: 1.120039157 | D107: 1.94874013 | E107: -5.329862952 | F107: 111.8561759 | G107: 1.952258559 | H107: 12.39716612 | I107: 0.2163713667 | J107: 0 | K107: 0 | L107: -13.49706326 | M107: 58.46220389 | N107: 142.7722004 | O107: 92.81212711 | P107: 180 | Q107: 0 | T107: ΣRB | U107: RBx | V107: RBy | W107: MOMENTO MOTOR
A108: 104 | B108: 1.815142422 | C108: 1.106462484 | D108: 1.940591453 | E108: -5.377381308 | F108: 112.4649227 | G108: 1.962883193 | H108: 12.33986448 | I108: 0.2153712644 | J108: 0 | K108: 0 | L108: -14.51531374 | M108: 58.21774358 | N108: 141.7882252 | O108: 92.4113644 | P108: 180 | Q108: 0 | T108: =(U108^2+V108^2)^0.5 -> 1370.294582 | U108: =W33-U110 -> 1369.550985 | V108: =Y33-U34-V110 -> -45.13690437 | W108: =(V104*A2+U69*Y63+W69*(A2-X63)+Y69-U63*(A2-X63)+W29*V3+Y29*(A2-U3)+V31-U30*(A2-U3)+W33*(N2+Z3)+Y33*(A2-(M2+X3))+V35-U34*(A2-(M2+X3))+W37*AE3-Y37*AC3+V39+U38*AC3+U78*Z72-W78*X72+Y78+U72*X72) -> -49441.26688
A109: 105 | B109: 1.832595715 | C109: 1.092944764 | D109: 1.931851653 | E109: -5.424693326 | F109: 113.0746072 | G109: 1.973524197 | H109: 12.2850164 | I109: 0.2144139849 | J109: 0 | K109: 0 | L109: -15.52914271 | M109: 57.95554958 | N109: 140.8070575 | O109: 91.99952857 | P109: 180 | Q109: 0 | T109: ΣRC | U109: RCx | V109: RCy
A110: 106 | B110: 1.850049007 | C110: 1.079490115 | D110: 1.922523392 | E110: -5.471784596 | F110: 113.6851067 | G110: 1.984179423 | H110: 12.23262207 | I110: 0.2134995313 | J110: 0 | K110: 0 | L110: -16.53824135 | M110: 57.67570176 | N110: 139.8290251 | O110: 91.57670434 | P110: 180 | Q110: 0 | T110: =(U110^2+V110^2)^0.5 -> 1491.159466 | U110: =-U106-U78-W37 -> -558.5364698 | V110: =-V106-W78+U72-Y37+U38 -> -1382.603907
A111: 107 | B111: 1.8675023 | C111: 1.066102636 | D111: 1.912609512 | E111: -5.518640773 | F111: 114.2962982 | G111: 1.994846726 | H111: 12.18268338 | I111: 0.2126279367 | J111: 0 | K111: 0 | L111: -17.54230228 | M111: 57.37828536 | N111: 138.8544527 | O111: 91.14298623 | P111: 180 | Q111: 0
A112: 108 | B112: 1.884955592 | C112: 1.052786405 | D112: 1.902113033 | E112: -5.565247584 | F112: 114.9080587 | G112: 2.005523961 | H112: 12.13520397 | I112: 0.2117992647 | J112: 0 | K112: 0 | L112: -18.54101966 | M112: 57.06339098 | N112: 137.8836615 | O112: 90.69847866 | P112: 180 | Q112: 0
A113: 109 | B113: 1.902408885 | C113: 1.039545476 | D113: 1.891037151 | E113: -5.611590832 | F113: 115.5202651 | G113: 2.016208979 | H113: 12.09018922 | I113: 0.2110136091 | J113: 0 | K113: 0 | L113: -19.53408927 | M113: 56.73111454 | N113: 136.9169692 | O113: 90.24329592 | P113: 180 | Q113: 0
A114: 110 | B114: 1.919862177 | C114: 1.026383885 | D114: 1.879385242 | E114: -5.657656401 | F114: 116.1327942 | G114: 2.026899629 | H114: 12.04764626 | I114: 0.2102710943 | J114: 0 | K114: 0 | L114: -20.5212086 | M114: 56.38155725 | N114: 135.95469 | O114: 89.77756218 | P114: 180 | Q114: 0
A115: 111 | B115: 1.93731547 | C115: 1.01330564 | D115: 1.867160853 | E115: -5.703430259 | F115: 116.7455224 | G115: 2.037593753 | H115: 12.00758399 | I115: 0.2095718758 | J115: 0 | K115: 0 | L115: -21.50207697 | M115: 56.01482559 | N115: 134.9971345 | O115: 89.30141151 | P115: 180 | Q115: 0
A116: 112 | B116: 1.954768762 | C116: 1.000314725 | D116: 1.854367709 | E116: -5.748898462 | F116: 117.3583256 | G116: 2.048289186 | H116: 11.97001309 | I116: 0.20891614 | J116: 0 | K116: 0 | L116: -22.4763956 | M116: 55.63103127 | N116: 134.0446094 | O116: 88.81498792 | P116: 180 | Q116: 0
A117: 113 | B117: 1.972222055 | C117: 0.9874150972 | D117: 1.841009707 | E117: -5.79404716 | F117: 117.9710791 | G117: 2.058983753 | H117: 11.93494607 | I117: 0.2083041049 | J117: 0 | K117: 0 | L117: -23.44386771 | M117: 55.23029121 | N117: 133.0974178 | O117: 88.3184453 | P117: 180 | Q117: 0
A118: 114 | B118: 1.989675347 | C118: 0.9746106855 | D118: 1.827090915 | E118: -5.838862601 | F118: 118.5836578 | G118: 2.069675267 | H118: 11.90239721 | I118: 0.2077360202 | J118: 0 | K118: 0 | L118: -24.40419858 | M118: 54.81272746 | N118: 132.1558585 | O118: 87.81194751 | P118: 180 | Q118: 0
A119: 115 | B119: 2.00712864 | C119: 0.9619053906 | D119: 1.812615574 | E119: -5.883331133 | F119: 119.1959355 | G119: 2.080361529 | H119: 11.87238266 | I119: 0.2072121675 | J119: 0 | K119: 0 | L119: -25.3570957 | M119: 54.37846722 | N119: 131.2202266 | O119: 87.29566834 | P119: 180 | Q119: 0
A120: 116 | B120: 2.024581932 | C120: 0.9493030826 | D120: 1.797588093 | E120: -5.927439211 | F120: 119.8077855 | G120: 2.091040326 | H120: 11.84492041 | I120: 0.2067328608 | J120: 0 | K120: 0 | L120: -26.30226881 | M120: 53.92764278 | N120: 130.290813 | O120: 86.76979155 | P120: 180 | Q120: 0
A121: 117 | B121: 2.042035225 | C121: 0.9368076002 | D121: 1.782013048 | E121: -5.971173399 | F121: 120.4190799 | G121: 2.101709426 | H121: 11.82003032 | I121: 0.2062984467 | J121: 0 | K121: 0 | L121: -27.23942998 | M121: 53.46039145 | N121: 129.3679041 | O121: 86.23451088 | P121: 180 | Q121: 0
A122: 118 | B122: 2.059488517 | C122: 0.9244227498 | D122: 1.765895186 | E122: -6.014520376 | F122: 121.0296898 | G122: 2.11236658 | H122: 11.79773412 | I122: 0.2059093048 | J122: 0 | K122: 0 | L122: -28.16829377 | M122: 52.97685557 | N122: 128.4517823 | O122: 85.69003004 | P122: 180 | Q122: 0
A123: 119 | B123: 2.07694181 | C123: 0.9121523038 | D123: 1.749239414 | E123: -6.057466937 | F123: 121.6394854 | G123: 2.12300952 | H123: 11.7780555 | I123: 0.2055658479 | J123: 0 | K123: 0 | L123: -29.08857721 | M123: 52.47718243 | N123: 127.5427251 | O123: 85.13656274 | P123: 180 | Q123: 0
A124: 120 | B124: 2.094395102 | C124: 0.9 | D124: 1.732050808 | E124: -6.1 | F124: 122.2483351 | G124: 2.133635953 | H124: 11.76102003 | I124: 0.2052685228 | J124: 0 | K124: 0 | L124: -30 | M124: 51.96152423 | N124: 126.6410059 | O124: 84.57433267 | P124: 180 | Q124: 0
A125: 121 | B125: 2.111848395 | C125: 0.8879695401 | D125: 1.714334601 | E125: -6.14210661 | F125: 122.8561066 | G125: 2.144243566 | H125: 11.74665524 | I125: 0.2050178101 | J125: 0 | K125: 0 | L125: -30.90228449 | M125: 51.43003804 | N125: 125.7468929 | O125: 84.00357357 | P125: 180 | Q125: 0
A126: 122 | B126: 2.129301687 | C126: 0.8760645886 | D126: 1.696096192 | E126: -6.18377394 | F126: 123.4626656 | G126: 2.154830019 | H126: 11.73499066 | I126: 0.2048142247 | J126: 0 | K126: 0 | L126: -31.79515585 | M126: 50.88288577 | N126: 124.8606498 | O126: 83.42452913 | P126: 180 | Q126: 0
A127: 123 | B127: 2.14675498 | C127: 0.864288772 | D127: 1.677341136 | E127: -6.224989298 | F127: 124.0678767 | G127: 2.165392944 | H127: 11.72605776 | I127: 0.2046583163 | J127: 0 | K127: 0 | L127: -32.6783421 | M127: 50.32023408 | N127: 123.9825352 | O127: 82.83745309 | P127: 180 | Q127: 0
A128: 124 | B128: 2.164208272 | C128: 0.8526456772 | D128: 1.658075145 | E128: -6.26574013 | F128: 124.6716025 | G128: 2.175929948 | H128: 11.71989007 | I128: 0.2045506697 | J128: 0 | K128: 0 | L128: -33.55157421 | M128: 49.74225435 | N128: 123.1128025 | O128: 82.24260917 | P128: 180 | Q128: 0
A129: 125 | B129: 2.181661565 | C129: 0.8411388509 | D129: 1.638304089 | E129: -6.306014022 | F129: 125.2737042 | G129: 2.186438604 | H129: 11.71652311 | I129: 0.2044919051 | J129: 0 | K129: 0 | L129: -34.41458618 | M129: 49.14912266 | N129: 122.2517002 | O129: 81.6402711 | P129: 180 | Q129: 0
A130: 126 | B130: 2.199114858 | C130: 0.8297717982 | D130: 1.618033989 | E130: -6.345798706 | F130: 125.8740409 | G130: 2.196916457 | H130: 11.71599445 | I130: 0.2044826782 | J130: 0 | K130: 0 | L130: -35.26711514 | M130: 48.54101966 | N130: 121.399471 | O130: 81.03072256 | P130: 180 | Q130: 0
A131: 127 | B131: 2.21656815 | C131: 0.8185479815 | D131: 1.59727102 | E131: -6.385082065 | F131: 126.4724701 | G131: 2.207361017 | H131: 11.71834372 | I131: 0.2045236809 | J131: 0 | K131: 0 | L131: -36.10890139 | M131: 47.9181306 | N131: 120.5563524 | O131: 80.41425722 | P131: 180 | Q131: 0
A132: 128 | B132: 2.234021443 | C132: =$F$2-COS(B132)*($E$2+1)-$G$2 -> 0.8074708197 | D132: 1.576021507 | E132: =COS(B132)-$F$2-$E$2*COS(B132)-$G$2 -> -6.423852131 | F132: 127.0688472 | G132: =2*ATAN((-D132+(D132^2-4*C132*E132)^0.5)/(2*C132)) -> 2.21776976 | H132: =I132*180/PI() -> 11.72361265 | I132: 0.204615641 | J132: 0 | K132: 0 | L132: =$B$2*COS(B132) -> -36.93968852 | M132: =$B$2*SIN(B132) -> 47.28064522 | N132: =$P$4+$D$2*COS(G132) -> 119.7225763 | O132: =$D$2*SIN(G132) -> 79.79117865 | P132: =$A$2 -> 180 | Q132: 0
A133: 129 | B133: =A133*PI()/180 -> 2.251474735 | C133: 0.7965436872 | D133: =2*SIN(B133) -> 1.554291923 | E133: -6.462097095 | F133: 127.6630255 | G133: 2.228140127 | H133: 11.73184503 | I133: 0.2047593231 | J133: 0 | K133: 0 | L133: -37.75922346 | M133: 46.62875769 | N133: 118.8983686 | O133: 79.16180035 | P133: 180 | Q133: 0
A134: 130 | B134: 2.268928028 | C134: 0.7857699123 | D134: 1.532088886 | E134: -6.499805307 | F134: =G134*180/PI() -> 128.2548562 | G134: 2.238469522 | H134: 11.74308675 | I134: 0.2049555281 | J134: 0 | K134: 0 | L134: -38.56725658 | M134: 45.96266659 | N134: 118.0839493 | O134: 78.52644562 | P134: 180 | Q134: 0
A135: 131 | B135: 2.28638132 | C135: 0.7751527768 | D135: 1.50941916 | E135: -6.536965281 | F135: 128.8441884 | G135: 2.248755309 | H135: 11.75738581 | I135: 0.2052050938 | J135: 0 | K135: 0 | L135: -39.36354174 | M135: 45.28257481 | N135: 117.2795324 | O135: 77.8854476 | P135: 180 | Q135: 0
A136: 132 | B136: 2.303834613 | C136: 0.7646955149 | D136: 1.486289651 | E136: -6.573565698 | F136: 129.4308689 | G136: 2.258994816 | H136: 11.77479232 | I136: =ATAN2(N136-L136,O136-M136) -> 0.2055088947 | J136: 0 | K136: 0 | L136: -40.14783638 | M136: 44.58868953 | N136: 116.4853258 | O136: 77.23914913 | P136: 180 | Q136: 0
A137: 133 | B137: 2.321287905 | C137: 0.754401312 | D137: 1.462707403 | E137: -6.609595408 | F137: 130.0147423 | G137: 2.26918533 | H137: 11.79535851 | I137: 0.2058678424 | J137: 0 | K137: 0 | L137: -40.9199016 | M137: 43.8812221 | N137: 115.7015307 | O137: 76.5879027 | P137: 180 | Q137: 0
A138: 134 | B138: 2.338741198 | C138: 0.7442733036 | D138: 1.438679601 | E138: -6.645043437 | F138: 130.5956508 | G138: 2.279324096 | H138: 11.81913869 | I138: 0.2062828849 | J138: 0 | K138: 0 | L138: -41.67950223 | M138: 43.16038802 | N138: 114.9283419 | O138: 75.93207036 | P138: 180 | Q138: 0
A139: 135 | B139: 2.35619449 | C139: 0.7343145751 | D139: 1.414213562 | E139: -6.679898987 | F139: 131.1734342 | G139: 2.289408319 | H139: 11.8461893 | I139: 0.2067550072 | J139: 0 | K139: 0 | L139: -42.42640687 | M139: 42.42640687 | N139: 114.1659475 | O139: 75.2720236 | P139: 180 | Q139: 0
A140: 136 | B140: 2.373647783 | C140: 0.7245281597 | D140: 1.389316741 | E140: -6.714151441 | F140: 131.74793 | G140: 2.29943516 | H140: 11.87656885 | I140: 0.2072852303 | J140: 0 | K140: 0 | L140: -43.16038802 | M140: 41.67950223 | N140: 113.4145289 | O140: 74.60814323 | P140: 180 | Q140: 0
A141: 137 | B141: 2.391101075 | C141: 0.7149170387 | D141: 1.36399672 | E141: -6.747790365 | F141: 132.318973 | G141: 2.309401742 | H141: 11.91033791 | I141: 0.2078746116 | J141: 0 | K141: 0 | L141: -43.8812221 | M141: 40.9199016 | N141: 112.6742601 | O141: 73.9408192 | P141: 180 | Q141: 0
A142: 138 | B142: 2.408554368 | C142: 0.7054841396 | D142: 1.338261213 | E142: -6.780805511 | F142: 132.886396 | G142: 2.319305141 | H142: 11.9475591 | I142: 0.208524244 | J142: 0 | K142: 0 | L142: -44.58868953 | M142: 40.14783638 | N142: 111.9453082 | O142: 73.27045052 | P142: 180 | Q142: 0
A143: 139 | B143: 2.42600766 | C143: 0.6962323358 | D143: 1.312118058 | E143: -6.813186825 | F143: 133.450029 | G143: 2.329142393 | H143: 11.98829706 | I143: 0.2092352553 | J143: 0 | K143: 0 | L143: -45.28257481 | M143: 39.36354174 | N143: 111.2278328 | O143: 72.59744495 | P143: 180 | Q143: 0
A144: 140 | B144: 2.443460953 | C144: 0.6871644455 | D144: 1.285575219 | E144: -6.844924441 | F144: 134.0096998 | G144: 2.338910491 | H144: 12.03261836 | I144: 0.210008808 | J144: 0 | K144: 0 | L144: -45.96266659 | M144: 38.56725658 | N144: 110.521986 | O144: 71.92221888 | P144: 180 | Q144: 0
A145: 141 | B145: 2.460914245 | C145: 0.6782832308 | D145: 1.258640782 | E145: -6.876008692 | F145: 134.5652338 | G145: 2.348606389 | H145: 12.08059153 | I145: 0.2108460978 | J145: 0 | K145: 0 | L145: -46.62875769 | M145: 37.75922346 | N145: 109.8279123 | O145: 71.24519705 | P145: 180 | Q145: 0
A146: 142 | B146: 2.478367538 | C146: 0.6695913971 | D146: 1.231322951 | E146: -6.90643011 | F146: 135.116454 | G146: 2.358226996 | H146: 12.13228694 | I146: 0.2117483529 | J146: 0 | K146: 0 | L146: -47.28064522 | M146: 36.93968852 | N146: 109.1457482 | O146: 70.56681229 | P146: 180 | Q146: 0
A147: 143 | B147: 2.49582083 | C147: 0.661091592 | D147: 1.203630046 | E147: -6.936179428 | F147: 135.6631812 | G147: 2.367769186 | H147: 12.18777676 | I147: 0.212716833 | J147: 0 | K147: 0 | L147: -47.9181306 | M147: 36.10890139 | N147: 108.4756222 | O147: 69.88750521 | P147: 180 | Q147: 0
A148: 144 | B148: 2.513274123 | C148: 0.6527864045 | D148: 1.175570505 | E148: -6.965247584 | F148: 136.2052339 | G148: 2.377229791 | H148: 12.24713487 | I148: 0.2137528274 | J148: 0 | K148: 0 | L148: -48.54101966 | M148: 35.26711514 | N148: 107.8176548 | O148: 69.20772386 | P148: 180 | Q148: 0
A149: 145 | B149: 2.530727415 | C149: 0.6446783646 | D149: 1.147152873 | E149: -6.993625724 | F149: 136.7424287 | G149: 2.386605609 | H149: 12.31043677 | I149: 0.2148576541 | J149: 0 | K149: 0 | L149: -49.14912266 | M149: 34.41458618 | N149: 107.1719579 | O149: 68.52792338 | P149: 180 | Q149: 0
A150: 146 | B150: 2.548180708 | C150: 0.636769942 | D150: 1.118385807 | E150: -7.021305203 | F150: 137.2745801 | G150: 2.395893402 | H150: 12.3777595 | I150: 0.2160326573 | J150: 0 | K150: 0 | L150: -49.74225435 | M150: 33.55157421 | N150: 106.538635 | O150: 67.8485656 | P150: 180 | Q150: 0
A151: 147 | B151: 2.565634 | C151: 0.6290635456 | D151: 1.08927807 | E151: -7.04827759 | F151: 137.8015007 | G151: 2.405089902 | H151: 12.44918149 | I151: 0.2172792062 | J151: 0 | K151: 0 | L151: -50.32023408 | M151: 32.6783421 | N151: 105.917781 | O151: 67.17011857 | P151: 180 | Q151: 0
A152: 148 | B152: 2.583087293 | C152: 0.6215615231 | D152: 1.059838528 | E152: -7.074534669 | F152: 138.3230016 | G152: 2.414191809 | H152: 12.52478246 | I152: 0.2185986921 | J152: 0 | K152: 0 | L152: -50.88288577 | M152: 31.79515585 | N152: 105.3094819 | O152: 66.49305608 | P152: 180 | Q152: 0
A153: 149 | B153: 2.600540585 | C153: 0.6142661594 | D153: 1.03007615 | E153: -7.100068442 | F153: 138.8388922 | G153: 2.423195799 | H153: 12.60464326 | I153: 0.2199925259 | J153: 0 | K153: 0 | L153: -51.43003804 | M153: 30.90228449 | N153: 104.7138148 | O153: 65.81785716 | P153: 180 | Q153: 0
A154: 150 | B154: 2.617993878 | C154: 0.607179677 | D154: 1 | E154: -7.124871131 | F154: 139.3489808 | G154: 2.432098524 | H154: 12.68884572 | I154: 0.2214621361 | J154: 0 | K154: 0 | L154: -51.96152423 | M154: 30 | N154: 104.1308478 | O154: 65.14500547 | P154: 180 | Q154: 0
A155: 151 | B155: 2.635447171 | C155: 0.6003042343 | D155: 0.9696192405 | E155: -7.14893518 | F155: 139.8530745 | G155: 2.44089662 | H155: 12.77747248 | I155: 0.2230089649 | J155: 0 | K155: 0 | L155: -52.47718243 | M155: 29.08857721 | N155: 103.5606395 | O155: 64.47498872 | P155: 180 | Q155: 0
A156: 152 | B156: 2.652900463 | C156: 0.5936419257 | D156: 0.9389431256 | E156: -7.17225326 | F156: 140.3509798 | G156: 2.449586706 | H156: 12.87060681 | I156: 0.2246344655 | J156: 0 | K156: 0 | L156: -52.97685557 | M156: 28.16829377 | N156: 103.0032396 | O156: 63.80829799 | P156: 180 | Q156: 0
A157: 153 | B157: 2.670353756 | C157: 0.5871947806 | D157: 0.9079809995 | E157: -7.194818268 | F157: 140.8425024 | G157: 2.458165393 | H157: 12.96833237 | I157: 0.2263400984 | J157: 0 | K157: 0 | L157: -53.46039145 | M157: 27.23942998 | N157: 102.4586881 | O157: 63.14542702 | P157: 180 | Q157: 0
A158: 154 | B158: 2.687807048 | C158: 0.580964763 | D158: 0.8767422936 | E158: -7.21662333 | F158: 141.3274479 | G158: 2.466629289 | H158: 13.07073305 | I158: 0.2281273274 | J158: 0 | K158: 0 | L158: -53.92764278 | M158: 26.30226881 | N158: 101.9270156 | O158: 62.48687145 | P158: 180 | Q158: 0
A159: 155 | B159: 2.705260341 | C159: 0.5749537704 | D159: 0.8452365235 | E159: -7.237661804 | F159: 141.8056221 | G159: 2.474975004 | H159: 13.17789268 | I159: 0.2299976158 | J159: 0 | K159: 0 | L159: -54.37846722 | M159: 25.3570957 | N159: 101.4082429 | O159: 61.83312804 | P159: 180 | Q159: 0
A160: 156 | B160: 2.722713633 | C160: 0.5691636339 | D160: 0.8134732862 | E160: -7.257927281 | F160: 142.2768313 | G160: 2.483199155 | H160: 13.2898948 | I160: 0.2319524216 | J160: 0 | K160: 0 | L160: -54.81272746 | M160: 24.40419858 | N160: 100.9023815 | O160: 61.1846938 | P160: 180 | Q160: 0
A161: 157 | B161: 2.740166926 | C161: 0.5635961172 | D161: 0.781462257 | E161: -7.27741359 | F161: 142.7408823 | G161: 2.491298374 | H161: 13.4068224 | I161: 0.2339931932 | J161: 0 | K161: 0 | L161: -55.23029121 | M161: 23.44386771 | N161: 100.409433 | O161: 60.54206508 | P161: 180 | Q161: 0
A162: 158 | B162: 2.757620218 | C162: 0.5582529163 | D162: 0.7492131868 | E162: -7.296114793 | F162: 143.1975837 | G162: 2.499269316 | H162: 13.52875763 | I162: 0.2361213644 | J162: 0 | K162: 0 | L162: -55.63103127 | M162: 22.4763956 | N162: 99.92938922 | O162: 59.9057367 | P162: 180 | Q162: 0
A163: 159 | B163: 2.775073511 | C163: 0.5531356588 | D163: 0.7167358991 | E163: -7.314025194 | F163: 143.6467453 | G163: 2.507108666 | H163: 13.6557815 | I163: 0.2383383491 | J163: 0 | K163: 0 | L163: -56.01482559 | M163: 21.50207697 | N163: 99.46223241 | O163: 59.27620088 | P163: 180 | Q163: 0
A164: 160 | B164: 2.792526803 | C164: 0.5482459034 | D164: 0.6840402867 | E164: -7.331139338 | F164: 144.0881794 | G164: 2.514813143 | H164: 13.78797358 | I164: 0.2406455361 | J164: 0 | K164: 0 | L164: -56.38155725 | M164: 20.5212086 | N164: 99.00793505 | O164: 58.65394629 | P164: 180 | Q164: 0
A165: 161 | B165: 2.809980096 | C165: 0.5435851395 | D165: 0.6511363089 | E165: -7.347452012 | F165: 144.5217007 | G165: 2.522379517 | H165: 13.92541165 | I165: 0.243044283 | J165: 0 | K165: 0 | L165: -56.73111454 | M165: 19.53408927 | N165: 98.56646001 | O165: 58.03945696 | P165: 180 | Q165: 0
A166: 162 | B166: 2.827433388 | C166: 0.539154787 | D166: 0.6180339887 | E166: -7.362958246 | F166: 144.947127 | G166: 2.529804607 | H166: 14.06817142 | I166: 0.2455359111 | J166: 0 | K166: 0 | L166: -57.06339098 | M166: 18.54101966 | N166: 98.13776055 | O166: 57.43321123 | P166: 180 | Q166: 0
A167: 163 | B167: 2.844886681 | C167: 0.5349561952 | D167: 0.5847434094 | E167: -7.377653317 | F167: 145.3642798 | G167: 2.537085298 | H167: 14.21632615 | I167: 0.2481216988 | J167: 0 | K167: 0 | L167: -57.37828536 | M167: 17.54230228 | N167: 97.72178047 | O167: 56.83568061 | P167: 180 | Q167: 0
A168: 164 | B168: 2.862339973 | C168: 0.5309906432 | D168: 0.5512747116 | E168: -7.391532749 | F168: 145.7729848 | G168: 2.544218546 | H168: 14.36994628 | I168: 0.2508028759 | J168: 0 | K168: 0 | L168: -57.67570176 | M168: 16.53824135 | N168: 97.31845421 | O168: 56.24732869 | P168: 180 | Q168: 0
A169: 165 | B169: 2.879793266 | C169: 0.527259339 | D169: 0.5176380902 | E169: -7.404592314 | F169: 146.1730722 | G169: 2.551201387 | H169: 14.52909913 | I169: 0.2535806172 | J169: 0 | K169: 0 | L169: -57.95554958 | M169: 15.52914271 | N169: 96.927707 | O169: 55.66860997 | P169: 180 | Q169: 0
A170: 166 | B170: 2.897246558 | C170: 0.523763419 | D170: 0.4838437912 | E170: -7.416828034 | F170: 146.5643773 | G170: 2.558030949 | H170: 14.69384851 | I170: 0.2564560363 | J170: 0 | K170: 0 | L170: -58.21774358 | M170: 14.51531374 | N170: 96.54945508 | O170: 55.09996872 | P170: 180 | Q170: 0
A171: 167 | B171: 2.914699851 | C171: 0.5205039482 | D171: 0.4499021087 | E171: -7.428236181 | F171: 146.9467412 | G171: 2.564704459 | H171: 14.86425436 | I171: 0.2594301793 | J171: 0 | K171: 0 | L171: -58.46220389 | M171: 13.49706326 | N171: 96.18360588 | O171: 54.54183786 | P171: 180 | Q171: 0
A172: 168 | B172: 2.932153143 | C172: 0.5174819194 | D172: 0.4158233816 | E172: -7.438813282 | F172: 147.3200114 | G172: 2.571219252 | H172: 15.04037239 | I172: 0.2625040189 | J172: 0 | K172: 0 | L172: -58.68885604 | M172: 12.47470145 | N172: 95.83005828 | O172: 53.9946378 | P172: 180 | Q172: 0
A173: 169 | B173: 2.949606436 | C173: 0.5146982532 | D173: 0.3816179908 | E173: -7.448556114 | F173: 147.6840418 | G173: 2.577572782 | H173: 15.22225377 | I173: 0.2656784479 | J173: 0 | K173: 0 | L173: -58.89763101 | M173: 11.44853972 | N173: 95.48870291 | O173: 53.45877537 | P173: 180 | Q173: 0
A174: 170 | B174: 2.967059728 | C174: 0.5121537976 | D174: 0.3472963553 | E174: -7.457461708 | F174: 148.0386938 | G174: 2.583762628 | H174: 15.40994475 | I174: 0.2689542734 | J174: 0 | K174: 0 | L174: -59.08846518 | M174: 10.41889066 | N174: 95.15942242 | O174: 52.93464268 | P174: 180 | Q174: 0
A175: 171 | B175: 2.984513021 | C175: 0.5098493275 | D175: 0.3128689301 | E175: -7.465527354 | F175: 148.3838366 | G175: 2.589786505 | H175: 15.60348632 | I175: 0.2723322111 | J175: 0 | K175: 0 | L175: -59.26130044 | M175: 9.386067902 | N175: 94.84209186 | O175: 52.42261612 | P175: 180 | Q175: 0
A176: 172 | B176: 3.001966313 | C176: 0.507785545 | D176: 0.2783462019 | E176: -7.472750592 | F176: 148.7193473 | G176: 2.595642272 | H176: 15.80291394 | I176: 0.2758128796 | J176: 0 | K176: 0 | L176: -59.41608412 | M176: 8.350386058 | N176: 94.53657903 | O176: 51.92305534 | P176: 180 | Q176: 0
A177: 173 | B177: 3.019419606 | C177: 0.5059630787 | D177: 0.2437386868 | E177: -7.479129225 | F177: 149.0451119 | G177: 2.601327937 | H177: 16.00825721 | I177: 0.2793967957 | J177: 0 | K177: 0 | L177: -59.5527691 | M177: 7.312160604 | N177: 94.24274488 | O177: 51.4363023 | P177: 180 | Q177: 0
A178: 174 | B178: 3.036872898 | C178: 0.5043824837 | D178: 0.2090569265 | E178: -7.484661307 | F178: 149.3610254 | G178: 2.606841668 | H178: 16.21953959 | I178: 0.2830843689 | J178: 0 | K178: 0 | L178: -59.67131372 | M178: 6.271707796 | N178: 93.96044395 | O178: 50.96268042 | P178: 180 | Q178: 0
A179: 175 | B179: 3.054326191 | C179: 0.5030442415 | D179: 0.1743114855 | E179: -7.489345155 | F179: 149.6669922 | G179: 2.612181796 | H179: 16.43677817 | I179: 0.2868758974 | J179: 0 | K179: 0 | L179: -59.77168189 | M179: 5.229344565 | N179: 93.68952482 | O179: 50.50249374 | P179: 180 | Q179: 0
A180: 176 | B180: 3.071779484 | C180: 0.5019487598 | D180: 0.1395129475 | E180: -7.493179341 | F180: 149.9629264 | G180: 2.617346822 | H180: 16.65998342 | I180: 0.290771564 | J180: 0 | K180: 0 | L180: -59.85384302 | M180: 4.185388425 | N180: 93.42983056 | O180: 50.05602625 | P180: 180 | Q180: 0
A181: 177 | B181: 3.089232776 | C181: 0.5010963722 | D181: 0.1046719125 | E181: -7.496162697 | F181: 150.2487522 | G181: 2.622335422 | H181: 16.88915901 | I181: 0.2947714327 | J181: 0 | K181: 0 | L181: -59.91777209 | M181: 3.140157375 | N181: 93.18119927 | O181: 49.62354118 | P181: 180 | Q181: 0
A182: 178 | B182: 3.106686069 | C182: 0.5004873384 | D182: 0.06979899341 | E182: -7.498294316 | F182: 150.5244039 | G182: 2.627146453 | H182: 17.12430163 | I182: 0.2988754456 | J182: 0 | K182: 0 | L182: -59.96344962 | M182: 2.093969802 | N182: 92.94346454 | O182: 49.20528055 | P182: 180 | Q182: 0
A183: 179 | B183: 3.124139361 | C183: 0.5001218439 | D183: 0.03490481287 | E183: -7.499573546 | F183: 150.7898266 | G183: 2.631778953 | H183: 17.36540086 | I183: 0.303083421 | J183: 0 | K183: 0 | L183: -59.99086171 | M183: 1.047144386 | N183: 92.71645604 | O183: 48.80146467 | P183: 180 | Q183: 0
A184: 180 | B184: 3.141592654 | C184: 0.5 | D184: 2.45029691e-16 | E184: -7.5 | F184: 151.0449756 | G184: 2.636232143 | H184: 17.61243907 | I184: 0.3073950511 | J184: 0 | K184: 0 | L184: -60 | M184: 7.350890729e-15 | N184: 92.5 | O184: 48.41229183 | P184: 180 | Q184: 0
A185: 181 | B185: 3.159045946 | C185: 0.5001218439 | D185: -0.03490481287 | E185: -7.499573546 | F185: 151.2898171 | G185: 2.640505433 | H185: 17.86539134 | I185: 0.3118099011 | J185: 0 | K185: 0 | L185: -59.99086171 | M185: -1.047144386 | N185: 92.2939198 | O185: 48.03793809 | P185: 180 | Q185: 0
A186: 182 | B186: 3.176499239 | C186: 0.5004873384 | D186: -0.06979899341 | E186: -7.498294316 | F186: 151.5243278 | G186: 2.644598417 | H186: 18.12422547 | I186: 0.3163274089 | J186: 0 | K186: 0 | L186: -59.96344962 | M186: -2.093969802 | N186: 92.0980365 | O186: 47.67855715 | P186: 180 | Q186: 0
A187: 183 | B187: 3.193952531 | C187: 0.5010963722 | D187: -0.1046719125 | E187: -7.496162697 | F187: 151.7484951 | G187: 2.648510875 | H187: 18.38890195 | I187: 0.3209468848 | J187: 0 | K187: 0 | L187: -59.91777209 | M187: -3.140157375 | N187: 91.9121694 | O187: 47.33428039 | P187: 180 | Q187: 0
A188: 184 | B188: 3.211405824 | C188: 0.5019487598 | D188: -0.1395129475 | E188: -7.493179341 | F188: 151.962317 | G188: 2.65224277 | H188: 18.659374 | I188: 0.3256675126 | J188: 0 | K188: 0 | L188: -59.85384302 | M188: -4.185388425 | N188: 91.73613661 | O188: 47.00521694 | P188: 180 | Q188: 0
A189: 185 | B189: 3.228859116 | C189: 0.5030442415 | D189: -0.1743114855 | E189: -7.489345155 | F189: 152.1658017 | G189: 2.655794249 | H189: 18.93558769 | I189: 0.330488351 | J189: 0 | K189: 0 | L189: -59.77168189 | M189: -5.229344565 | N189: 91.56975556 | O189: 46.6914539 | P189: 180 | Q189: 0
A190: 186 | B190: 3.246312409 | C190: 0.5043824837 | D190: -0.2090569265 | E190: -7.484661307 | F190: 152.3589679 | G190: 2.659165634 | H190: 19.21748201 | I190: 0.335408335 | J190: 0 | K190: 0 | L190: -59.67131372 | M190: -6.271707796 | N190: 91.41284355 | O190: 46.39305672 | P190: 180 | Q190: 0
A191: 187 | B191: 3.263765701 | C191: 0.5059630787 | D191: -0.2437386868 | E191: -7.479129225 | F191: 152.5418438 | G191: 2.662357421 | H191: 19.50498904 | I191: 0.3404262793 | J191: 0 | K191: 0 | L191: -59.5527691 | M191: -7.312160604 | N191: 91.2652183 | O191: 46.11006958 | P191: 180 | Q191: 0
A192: 188 | B192: 3.281218994 | C192: 0.507785545 | D192: -0.2783462019 | E192: -7.472750592 | F192: 152.7144675 | G192: 2.665370273 | H192: 19.79803412 | I192: 0.3455408808 | J192: 0 | K192: 0 | L192: -59.41608412 | M192: -8.350386058 | N192: 91.12669842 | O192: 45.84251592 | P192: 180 | Q192: 0
A193: 189 | B193: 3.298672286 | C193: 0.5098493275 | D193: -0.3128689301 | E193: -7.465527354 | F193: 152.8768863 | G193: 2.668205016 | H193: 20.09653604 | I193: 0.3507507221 | J193: 0 | K193: 0 | L193: -59.26130044 | M193: -9.386067902 | N193: 90.99710391 | O193: 45.59039908 | P193: 180 | Q193: 0
A194: 190 | B194: 3.316125579 | C194: 0.5121537976 | D194: -0.3472963553 | E194: -7.457461708 | F194: 153.0291564 | G194: 2.670862631 | H194: 20.4004073 | I194: 0.3560542762 | J194: 0 | K194: 0 | L194: -59.08846518 | M194: -10.41889066 | N194: 90.87625667 | O194: 45.35370298 | P194: 180 | Q194: 0
A195: 191 | B195: 3.333578871 | C195: 0.5146982532 | D195: -0.3816179908 | E195: -7.448556114 | F195: 153.1713424 | G195: 2.673344244 | H195: 20.70955435 | I195: 0.3614499101 | J195: 0 | K195: 0 | L195: -58.89763101 | M195: -11.44853972 | N195: 90.76398086 | O195: 45.13239288 | P195: 180 | Q195: 0
A196: 192 | B196: 3.351032164 | C196: =$F$2-COS(B196)*($E$2+1)-$G$2 -> 0.5174819194 | D196: -0.4158233816 | E196: =COS(B196)-$F$2-$E$2*COS(B196)-$G$2 -> -7.438813282 | F196: 153.3035168 | G196: =2*ATAN((-D196+(D196^2-4*C196*E196)^0.5)/(2*C196)) -> 2.675651124 | H196: =I196*180/PI() -> 21.02387786 | I196: 0.3669358902 | J196: 0 | K196: 0 | L196: =$B$2*COS(B196) -> -58.68885604 | M196: =$B$2*SIN(B196) -> -12.47470145 | N196: =$P$4+$D$2*COS(G196) -> 90.6601034 | O196: =$D$2*SIN(G196) -> 44.92641624 | P196: =$A$2 -> 180 | Q196: 0
A197: 193 | B197: =A197*PI()/180 -> 3.368485456 | C197: 0.5205039482 | D197: =2*SIN(B197) -> -0.4499021087 | E197: -7.428236181 | F197: 153.4257599 | G197: 2.677784667 | H197: 21.34327302 | I197: 0.3725103873 | J197: 0 | K197: 0 | L197: -58.46220389 | M197: -13.49706326 | N197: 90.56445435 | O197: 44.73570358 | P197: 180 | Q197: 0
A198: 194 | B198: 3.385938749 | C198: 0.523763419 | D198: -0.4838437912 | E198: -7.416828034 | F198: =G198*180/PI() -> 153.5381586 | G198: 2.679746394 | H198: 21.66762983 | I198: 0.3781714816 | J198: 0 | K198: 0 | L198: -58.21774358 | M198: -14.51531374 | N198: 90.47686724 | O198: 44.56016945 | P198: 180 | Q198: 0
A199: 195 | B199: 3.403392041 | C199: 0.527259339 | D199: -0.5176380902 | E199: -7.404592314 | F199: 153.6408065 | G199: 2.681537939 | H199: 21.99683346 | I199: 0.3839171688 | J199: 0 | K199: 0 | L199: -57.95554958 | M199: -15.52914271 | N199: 90.39717944 | O199: 44.39971338 | P199: 180 | Q199: 0
A200: 196 | B200: 3.420845334 | C200: 0.5309906432 | D200: -0.5512747116 | E200: -7.391532749 | F200: 153.7338031 | G200: 2.683161035 | H200: 22.33076453 | I200: =ATAN2(N200-L200,O200-M200) -> 0.3897453656 | J200: 0 | K200: 0 | L200: -57.67570176 | M200: -16.53824135 | N200: 90.32523247 | O200: 44.25422091 | P200: 180 | Q200: 0
... 163 more rows
